Body,Body Name,Date,Transaction Number,Invoice Number,Amount,Supplier Name,Supplier ID ,VAT Registration Number ,Expense Area,Expense Type,Expense Code,Purchase Order
http://statistics.data.gov.uk/id/local-authority/29UP,Tonbridge & Malling Borough Council,1/4/2023,0012008567/3,12008567, 12892.71,Adelante Software Limited,01393800,812115871,Software Hire & Support,Information Technology,D27KD000044059,
http://statistics.data.gov.uk/id/local-authority/29UP,Tonbridge & Malling Borough Council,1/4/2023,0012008568/1,12008568, 6500.00,BlueFort Security Ltd,01214100,,Software Hire & Support,Information Technology,D27KD000044059,410032304
http://statistics.data.gov.uk/id/local-authority/29UP,Tonbridge & Malling Borough Council,1/4/2023,0012008569/3,12008569, 17270.20,Phoenix Software Ltd,00077400,755349015,Software Hire & Support,Information Technology,D27KD000044059,
http://statistics.data.gov.uk/id/local-authority/29UP,Tonbridge & Malling Borough Council,1/4/2023,0012008570/1,12008570, 767.90,Vanquish Tech,01798700,124406447,Initial Furniture & Equipment,Capital Renewals IT,P06FBFB1009906,110069946
http://statistics.data.gov.uk/id/local-authority/29UP,Tonbridge & Malling Borough Council,1/4/2023,0012008571/1,12008571, 8732.49,Civica UK Ltd,01051800,,Software Hire & Support,Information Technology,D27KD000044059,
http://statistics.data.gov.uk/id/local-authority/29UP,Tonbridge & Malling Borough Council,1/4/2023,0012008571/2,12008571, 1204.48,Civica UK Ltd,01051800,,Software Hire & Support,Information Technology,D27KD000044059,
http://statistics.data.gov.uk/id/local-authority/29UP,Tonbridge & Malling Borough Council,1/4/2023,0012008572/1,12008572, 9.95,Kingsfield Computer Products Ltd,00942800,,Delivery Expenses,Information Technology,D27KD000044069,410032264
http://statistics.data.gov.uk/id/local-authority/29UP,Tonbridge & Malling Borough Council,1/4/2023,0012008572/2,12008572, 870.00,Kingsfield Computer Products Ltd,00942800,,Initial Furniture & Equipment,Capital Renewals IT,P06FBFB2009906,410032264
http://statistics.data.gov.uk/id/local-authority/29UP,Tonbridge & Malling Borough Council,1/4/2023,0012008573/1,12008573, 2800.00,Sapphire Technologies Ltd,01452900,,Software Hire & Support,Information Technology,D27KD000044059,410032303
http://statistics.data.gov.uk/id/local-authority/29UP,Tonbridge & Malling Borough Council,1/4/2023,0012008573/2,12008573, 344.83,Sapphire Technologies Ltd,01452900,,Software Hire & Support,Information Technology,D27KD000044059,410032303
http://statistics.data.gov.uk/id/local-authority/29UP,Tonbridge & Malling Borough Council,1/4/2023,0012008574/1,12008574, 11025.00,SureCloud Limited,01155300,,Consultancy Fees,Information Technology,D27KD000044011,410032308
http://statistics.data.gov.uk/id/local-authority/29UP,Tonbridge & Malling Borough Council,1/4/2023,0012008575/1,12008575, 155.28,British Telecommunications Plc,00012800,,Telephones - Rentals,General Admin Telephones,D24GT000045005,
http://statistics.data.gov.uk/id/local-authority/29UP,Tonbridge & Malling Borough Council,1/4/2023,0012008576/1,12008576, 2741.25,Comtec Enterprises L:td,01699500,,BRREP Renew UPS Batteries,Gibson Building West,M15KBP20001978,410032275
http://statistics.data.gov.uk/id/local-authority/29UP,Tonbridge & Malling Borough Council,1/4/2023,0012008576/2,12008576, 750.00,Comtec Enterprises L:td,01699500,,BRREP Renew UPS Batteries,Gibson Building West,M15KBP20001978,410032275
http://statistics.data.gov.uk/id/local-authority/29UP,Tonbridge & Malling Borough Council,1/4/2023,0012008576/3,12008576, 450.00,Comtec Enterprises L:td,01699500,,BRREP Renew UPS Batteries,Gibson Building West,M15KBP20001978,410032275
http://statistics.data.gov.uk/id/local-authority/29UP,Tonbridge & Malling Borough Council,1/4/2023,0012008577/1,12008577, 14.56,Esendex Limited,01008900,,Leased Lines & Modems,Information Technology,D27KD000045011,
http://statistics.data.gov.uk/id/local-authority/29UP,Tonbridge & Malling Borough Council,1/4/2023,0012008578/1,12008578, 110.45,KCS,00054200,,Copy Charges,Multi Function Devices,D22GB000040125,
http://statistics.data.gov.uk/id/local-authority/29UP,Tonbridge & Malling Borough Council,1/4/2023,0012008579/1,12008579, 8480.00,Ebase Technology Limited,00895300,,Software Hire & Support,Information Technology,D27KD000044059,410032311
http://statistics.data.gov.uk/id/local-authority/29UP,Tonbridge & Malling Borough Council,1/4/2023,0012008580/1,12008580, 1147.69,NTT Cloud Communications UK Ltd,01794600,,Software Hire & Support,Information Technology,D27KD000044059,
http://statistics.data.gov.uk/id/local-authority/29UP,Tonbridge & Malling Borough Council,1/4/2023,0021038329/1,21038329, 448.00,East Peckham Parish Council,00030300,,Borough Christmas Lighting,Eco Dev & Reg Boro Chris Light,D52TE000047014,
http://statistics.data.gov.uk/id/local-authority/29UP,Tonbridge & Malling Borough Council,1/4/2023,0021038330/1,21038330, 15335.41,Tonbridge & Malling Leisure Trust,01469100,,Employers Superannuation Costs,T&M Leisure Trust,B10DA000050107,
http://statistics.data.gov.uk/id/local-authority/29UP,Tonbridge & Malling Borough Council,1/4/2023,0021038331/1,21038331, 21497.43,Landscape Services Ltd,00057600,,Grounds Maintenance Contract,Sports Grounds,B13ET000050103,
http://statistics.data.gov.uk/id/local-authority/29UP,Tonbridge & Malling Borough Council,1/4/2023,0021038331/10,21038331, 157.16,Landscape Services Ltd,00057600,,Grounds Maintenance Contract,Churchyards St Stephens,B28MY000050103,
http://statistics.data.gov.uk/id/local-authority/29UP,Tonbridge & Malling Borough Council,1/4/2023,0021038331/11,21038331, 173.71,Landscape Services Ltd,00057600,,Grounds Maintenance Contract,Grounds,D21FF000050103,
http://statistics.data.gov.uk/id/local-authority/29UP,Tonbridge & Malling Borough Council,1/4/2023,0021038331/12,21038331, 329.46,Landscape Services Ltd,00057600,,Maintenance of Grounds,Parking Off-Street,E10HA000020402,
http://statistics.data.gov.uk/id/local-authority/29UP,Tonbridge & Malling Borough Council,1/4/2023,0021038331/13,21038331, 1033.20,Landscape Services Ltd,00057600,,Maintenance of Grounds,Parking Off-Street,E10HAE00120402,
http://statistics.data.gov.uk/id/local-authority/29UP,Tonbridge & Malling Borough Council,1/4/2023,0021038331/14,21038331, 98.11,Landscape Services Ltd,00057600,,Maintenance of Grounds,Parking Off-Street,E10HAE00220402,
http://statistics.data.gov.uk/id/local-authority/29UP,Tonbridge & Malling Borough Council,1/4/2023,0021038331/15,21038331, 88.97,Landscape Services Ltd,00057600,,Maintenance of Grounds,Parking Off-Street,E10HAE00320402,
http://statistics.data.gov.uk/id/local-authority/29UP,Tonbridge & Malling Borough Council,1/4/2023,0021038331/16,21038331, 22.19,Landscape Services Ltd,00057600,,Maintenance of Grounds,Parking Off-Street,E10HAE00420402,
http://statistics.data.gov.uk/id/local-authority/29UP,Tonbridge & Malling Borough Council,1/4/2023,0021038331/17,21038331, 0.57,Landscape Services Ltd,00057600,,Maintenance of Grounds,Parking Off-Street,E10HAE00520402,
http://statistics.data.gov.uk/id/local-authority/29UP,Tonbridge & Malling Borough Council,1/4/2023,0021038331/18,21038331, 62.11,Landscape Services Ltd,00057600,,Maintenance of Grounds,Parking Off-Street,E10HAE00620402,
http://statistics.data.gov.uk/id/local-authority/29UP,Tonbridge & Malling Borough Council,1/4/2023,0021038331/19,21038331, 145.01,Landscape Services Ltd,00057600,,Maintenance of Grounds,Parking Off-Street,E10HAE01020402,
http://statistics.data.gov.uk/id/local-authority/29UP,Tonbridge & Malling Borough Council,1/4/2023,0021038331/2,21038331, 7461.13,Landscape Services Ltd,00057600,,Grounds Maintenance Contract,Tonbridge Castle Grounds,B22LB000050103,
http://statistics.data.gov.uk/id/local-authority/29UP,Tonbridge & Malling Borough Council,1/4/2023,0021038331/20,21038331, 3.21,Landscape Services Ltd,00057600,,Maintenance of Grounds,Parking Off-Street,E10HAE01220402,
http://statistics.data.gov.uk/id/local-authority/29UP,Tonbridge & Malling Borough Council,1/4/2023,0021038331/21,21038331, 7.09,Landscape Services Ltd,00057600,,Maintenance of Grounds,Parking Off-Street,E10HAE01320402,
http://statistics.data.gov.uk/id/local-authority/29UP,Tonbridge & Malling Borough Council,1/4/2023,0021038331/22,21038331, 29.50,Landscape Services Ltd,00057600,,Maintenance of Grounds,Parking Off-Street,E10HAE01520402,
http://statistics.data.gov.uk/id/local-authority/29UP,Tonbridge & Malling Borough Council,1/4/2023,0021038331/23,21038331, 57.64,Landscape Services Ltd,00057600,,Maintenance of Grounds,Parking Off-Street,E10HAE01620402,
http://statistics.data.gov.uk/id/local-authority/29UP,Tonbridge & Malling Borough Council,1/4/2023,0021038331/24,21038331, 23.42,Landscape Services Ltd,00057600,,Maintenance of Grounds,Parking Off-Street,E10HAE01720402,
http://statistics.data.gov.uk/id/local-authority/29UP,Tonbridge & Malling Borough Council,1/4/2023,0021038331/25,21038331, 14.39,Landscape Services Ltd,00057600,,Maintenance of Grounds,Parking Off-Street,E10HAE02120402,
http://statistics.data.gov.uk/id/local-authority/29UP,Tonbridge & Malling Borough Council,1/4/2023,0021038331/26,21038331, 22.91,Landscape Services Ltd,00057600,,Maintenance of Grounds,Parking Off-Street,E10HAE02320402,
http://statistics.data.gov.uk/id/local-authority/29UP,Tonbridge & Malling Borough Council,1/4/2023,0021038331/27,21038331, 87.83,Landscape Services Ltd,00057600,,Maintenance of Grounds,Parking Off-Street,E10HAE02820402,
http://statistics.data.gov.uk/id/local-authority/29UP,Tonbridge & Malling Borough Council,1/4/2023,0021038331/28,21038331, 23.78,Landscape Services Ltd,00057600,,Maintenance of Grounds,Parking Off-Street,E10HAE04020402,
http://statistics.data.gov.uk/id/local-authority/29UP,Tonbridge & Malling Borough Council,1/4/2023,0021038331/29,21038331, 78.42,Landscape Services Ltd,00057600,,Maintenance of Grounds,Parking Off-Street,E10HAE04520402,
http://statistics.data.gov.uk/id/local-authority/29UP,Tonbridge & Malling Borough Council,1/4/2023,0021038331/3,21038331, 56.77,Landscape Services Ltd,00057600,,Trade Refuse Charges,Haysden Country Park,B22LC000044008,
http://statistics.data.gov.uk/id/local-authority/29UP,Tonbridge & Malling Borough Council,1/4/2023,0021038331/4,21038331, 487.02,Landscape Services Ltd,00057600,,Litter Collection,Haysden Country Park,B22LC000044061,
http://statistics.data.gov.uk/id/local-authority/29UP,Tonbridge & Malling Borough Council,1/4/2023,0021038331/5,21038331, 1674.08,Landscape Services Ltd,00057600,,Grounds Maintenance Contract,Haysden Country Park,B22LC000050103,
http://statistics.data.gov.uk/id/local-authority/29UP,Tonbridge & Malling Borough Council,1/4/2023,0021038331/6,21038331, 583.97,Landscape Services Ltd,00057600,,Grounds Maintenance Contract,Haysden Country Park,B22LC000050103,
http://statistics.data.gov.uk/id/local-authority/29UP,Tonbridge & Malling Borough Council,1/4/2023,0021038331/7,21038331, 12393.51,Landscape Services Ltd,00057600,,Grounds Maintenance Contract,Open Spaces & Amenity Areas,B22LE000050103,
http://statistics.data.gov.uk/id/local-authority/29UP,Tonbridge & Malling Borough Council,1/4/2023,0021038331/8,21038331, 4577.19,Landscape Services Ltd,00057600,,Grounds Maintenance Contract,Cemetery,B26MP000050103,
http://statistics.data.gov.uk/id/local-authority/29UP,Tonbridge & Malling Borough Council,1/4/2023,0021038331/9,21038331, 216.11,Landscape Services Ltd,00057600,,Grounds Maintenance Contract,Churchyards St Peter & St Paul,B28MX000050103,
http://statistics.data.gov.uk/id/local-authority/29UP,Tonbridge & Malling Borough Council,1/4/2023,0022027312/1,22027312, 13.96,KCS,00054200,,Stationery,Env Hlth & Hsg Sals&Overheads,D01AVDV0643003,220003297
http://statistics.data.gov.uk/id/local-authority/29UP,Tonbridge & Malling Borough Council,1/4/2023,0022027312/2,22027312, 8.85,KCS,00054200,,Stationery,Env Hlth & Hsg Sals&Overheads,D01AVDV0643003,220003297
http://statistics.data.gov.uk/id/local-authority/29UP,Tonbridge & Malling Borough Council,1/4/2023,0022027312/3,22027312, 7.47,KCS,00054200,,Stationery,Env Hlth & Hsg Sals&Overheads,D01AVDV0643003,220003297
http://statistics.data.gov.uk/id/local-authority/29UP,Tonbridge & Malling Borough Council,1/4/2023,0022027312/4,22027312, 2.98,KCS,00054200,,Stationery,Env Hlth & Hsg Sals&Overheads,D01AVDV0643003,220003297
http://statistics.data.gov.uk/id/local-authority/29UP,Tonbridge & Malling Borough Council,1/4/2023,0022027313/1,22027313, 5400.00,Dolphin Stairlifts,00698900,,Other Expenses,Disabled Facilities Grant Mand,P03AC000009908,
http://statistics.data.gov.uk/id/local-authority/29UP,Tonbridge & Malling Borough Council,1/4/2023,0022027314/1,22027314, 56.11,Scottish Water Business Stream Ltd,01641100,,Sewerage Charges,Public Conveniences,H22SCH00424003,
http://statistics.data.gov.uk/id/local-authority/29UP,Tonbridge & Malling Borough Council,1/4/2023,0022027315/1,22027315, 366.00,Town & Country Housing Group,01385400,,Other Expenses,Disabled Facilities Grant Mand,P03AC000009908,
http://statistics.data.gov.uk/id/local-authority/29UP,Tonbridge & Malling Borough Council,1/4/2023,0022027316/1,22027316, 3000.00,Dolphin Stairlifts,00698900,,Other Expenses,Disabled Facilities Grant Mand,P03AC000009908,
http://statistics.data.gov.uk/id/local-authority/29UP,Tonbridge & Malling Borough Council,1/4/2023,0022027317/3,22027317, 245.00,Countrystyle Group,00835900,781981681,Collection of Card,Dry Recycling,H34SR000054008,
http://statistics.data.gov.uk/id/local-authority/29UP,Tonbridge & Malling Borough Council,1/4/2023,0022027318/1,22027318, 387.37,Urbaser LTD,01718800,,Maintenance of Grounds,Sports Grounds,B13ET000020402,
http://statistics.data.gov.uk/id/local-authority/29UP,Tonbridge & Malling Borough Council,1/4/2023,0022027318/10,22027318, 60.22,Urbaser LTD,01718800,,Maintenance of Grounds,Grounds,D21FF000020402,
http://statistics.data.gov.uk/id/local-authority/29UP,Tonbridge & Malling Borough Council,1/4/2023,0022027318/11,22027318, 184.19,Urbaser LTD,01718800,,Maintenance of Grounds,Parking Off-Street,E10HA000020402,
http://statistics.data.gov.uk/id/local-authority/29UP,Tonbridge & Malling Borough Council,1/4/2023,0022027318/12,22027318, 4686.59,Urbaser LTD,01718800,,Maintenance of Grounds,Parking Off-Street,E10HAE00120402,
http://statistics.data.gov.uk/id/local-authority/29UP,Tonbridge & Malling Borough Council,1/4/2023,0022027318/13,22027318, 504.84,Urbaser LTD,01718800,,Maintenance of Grounds,Parking Off-Street,E10HAE00220402,
http://statistics.data.gov.uk/id/local-authority/29UP,Tonbridge & Malling Borough Council,1/4/2023,0022027318/14,22027318, 315.82,Urbaser LTD,01718800,,Maintenance of Grounds,Parking Off-Street,E10HAE00320402,
http://statistics.data.gov.uk/id/local-authority/29UP,Tonbridge & Malling Borough Council,1/4/2023,0022027318/15,22027318, 1651.73,Urbaser LTD,01718800,,Maintenance of Grounds,Parking Off-Street,E10HAE00420402,
http://statistics.data.gov.uk/id/local-authority/29UP,Tonbridge & Malling Borough Council,1/4/2023,0022027318/16,22027318, 274.48,Urbaser LTD,01718800,,Maintenance of Grounds,Parking Off-Street,E10HAE00520402,
http://statistics.data.gov.uk/id/local-authority/29UP,Tonbridge & Malling Borough Council,1/4/2023,0022027318/17,22027318, 1023.71,Urbaser LTD,01718800,,Maintenance of Grounds,Parking Off-Street,E10HAE00620402,
http://statistics.data.gov.uk/id/local-authority/29UP,Tonbridge & Malling Borough Council,1/4/2023,0022027318/18,22027318, 8.63,Urbaser LTD,01718800,,Maintenance of Grounds,Parking Off-Street,E10HAE00820402,
http://statistics.data.gov.uk/id/local-authority/29UP,Tonbridge & Malling Borough Council,1/4/2023,0022027318/19,22027318, 8.52,Urbaser LTD,01718800,,Maintenance of Grounds,Parking Off-Street,E10HAE00920402,
http://statistics.data.gov.uk/id/local-authority/29UP,Tonbridge & Malling Borough Council,1/4/2023,0022027318/2,22027318, 82.44,Urbaser LTD,01718800,,Maintenance of Grounds,Poult Wood Golf Centre,B21KE000020402,
http://statistics.data.gov.uk/id/local-authority/29UP,Tonbridge & Malling Borough Council,1/4/2023,0022027318/20,22027318, 20.23,Urbaser LTD,01718800,,Maintenance of Grounds,Parking Off-Street,E10HAE01020402,
http://statistics.data.gov.uk/id/local-authority/29UP,Tonbridge & Malling Borough Council,1/4/2023,0022027318/21,22027318, 96.12,Urbaser LTD,01718800,,Maintenance of Grounds,Parking Off-Street,E10HAE01120402,
http://statistics.data.gov.uk/id/local-authority/29UP,Tonbridge & Malling Borough Council,1/4/2023,0022027318/22,22027318, 60.48,Urbaser LTD,01718800,,Maintenance of Grounds,Parking Off-Street,E10HAE01220402,
http://statistics.data.gov.uk/id/local-authority/29UP,Tonbridge & Malling Borough Council,1/4/2023,0022027318/23,22027318, 1146.81,Urbaser LTD,01718800,,Maintenance of Grounds,Parking Off-Street,E10HAE01320402,
http://statistics.data.gov.uk/id/local-authority/29UP,Tonbridge & Malling Borough Council,1/4/2023,0022027318/24,22027318, 87.22,Urbaser LTD,01718800,,Maintenance of Grounds,Parking Off-Street,E10HAE01420402,
http://statistics.data.gov.uk/id/local-authority/29UP,Tonbridge & Malling Borough Council,1/4/2023,0022027318/25,22027318, 268.78,Urbaser LTD,01718800,,Maintenance of Grounds,Parking Off-Street,E10HAE01520402,
http://statistics.data.gov.uk/id/local-authority/29UP,Tonbridge & Malling Borough Council,1/4/2023,0022027318/26,22027318, 289.08,Urbaser LTD,01718800,,Maintenance of Grounds,Parking Off-Street,E10HAE01620402,
http://statistics.data.gov.uk/id/local-authority/29UP,Tonbridge & Malling Borough Council,1/4/2023,0022027318/27,22027318, 853.41,Urbaser LTD,01718800,,Maintenance of Grounds,Parking Off-Street,E10HAE01720402,
http://statistics.data.gov.uk/id/local-authority/29UP,Tonbridge & Malling Borough Council,1/4/2023,0022027318/28,22027318, 244.95,Urbaser LTD,01718800,,Maintenance of Grounds,Parking Off-Street,E10HAE01920402,
http://statistics.data.gov.uk/id/local-authority/29UP,Tonbridge & Malling Borough Council,1/4/2023,0022027318/29,22027318, 538.07,Urbaser LTD,01718800,,Maintenance of Grounds,Parking Off-Street,E10HAE02020402,
http://statistics.data.gov.uk/id/local-authority/29UP,Tonbridge & Malling Borough Council,1/4/2023,0022027318/3,22027318, 34.02,Urbaser LTD,01718800,,Maintenance of Grounds,Haysden Country Park,B22LC000020402,
http://statistics.data.gov.uk/id/local-authority/29UP,Tonbridge & Malling Borough Council,1/4/2023,0022027318/30,22027318, 18.68,Urbaser LTD,01718800,,Maintenance of Grounds,Parking Off-Street,E10HAE02120402,
http://statistics.data.gov.uk/id/local-authority/29UP,Tonbridge & Malling Borough Council,1/4/2023,0022027318/31,22027318, 123.00,Urbaser LTD,01718800,,Maintenance of Grounds,Parking Off-Street,E10HAE02220402,
http://statistics.data.gov.uk/id/local-authority/29UP,Tonbridge & Malling Borough Council,1/4/2023,0022027318/32,22027318, 1034.02,Urbaser LTD,01718800,,Maintenance of Grounds,Parking Off-Street,E10HAE02320402,
http://statistics.data.gov.uk/id/local-authority/29UP,Tonbridge & Malling Borough Council,1/4/2023,0022027318/33,22027318, 2.67,Urbaser LTD,01718800,,Maintenance of Grounds,Parking Off-Street,E10HAE02720402,
http://statistics.data.gov.uk/id/local-authority/29UP,Tonbridge & Malling Borough Council,1/4/2023,0022027318/34,22027318, 375.72,Urbaser LTD,01718800,,Maintenance of Grounds,Parking Off-Street,E10HAE02820402,
http://statistics.data.gov.uk/id/local-authority/29UP,Tonbridge & Malling Borough Council,1/4/2023,0022027318/35,22027318, 6.77,Urbaser LTD,01718800,,Maintenance of Grounds,Parking Off-Street,E10HAE02920402,
http://statistics.data.gov.uk/id/local-authority/29UP,Tonbridge & Malling Borough Council,1/4/2023,0022027318/36,22027318, 39.82,Urbaser LTD,01718800,,Maintenance of Grounds,Parking Off-Street,E10HAE03020402,
http://statistics.data.gov.uk/id/local-authority/29UP,Tonbridge & Malling Borough Council,1/4/2023,0022027318/37,22027318, 33.88,Urbaser LTD,01718800,,Maintenance of Grounds,Parking Off-Street,E10HAE03120402,
http://statistics.data.gov.uk/id/local-authority/29UP,Tonbridge & Malling Borough Council,1/4/2023,0022027318/38,22027318, 718.40,Urbaser LTD,01718800,,Maintenance of Grounds,Parking Off-Street,E10HAE04020402,
http://statistics.data.gov.uk/id/local-authority/29UP,Tonbridge & Malling Borough Council,1/4/2023,0022027318/39,22027318, 498.26,Urbaser LTD,01718800,,Maintenance of Grounds,Parking Off-Street,E10HAE04220402,
http://statistics.data.gov.uk/id/local-authority/29UP,Tonbridge & Malling Borough Council,1/4/2023,0022027318/4,22027318, 26.13,Urbaser LTD,01718800,,Dog Bin Emptying,Haysden Country Park,B22LC000044012,
http://statistics.data.gov.uk/id/local-authority/29UP,Tonbridge & Malling Borough Council,1/4/2023,0022027318/40,22027318, 1430.15,Urbaser LTD,01718800,,Maintenance of Grounds,Parking Off-Street,E10HAE04520402,
http://statistics.data.gov.uk/id/local-authority/29UP,Tonbridge & Malling Borough Council,1/4/2023,0022027318/41,22027318, 92676.10,Urbaser LTD,01718800,,Contract Payments,Refuse Collection,H20SA000054001,
http://statistics.data.gov.uk/id/local-authority/29UP,Tonbridge & Malling Borough Council,1/4/2023,0022027318/42,22027318, 946.15,Urbaser LTD,01718800,,Responsible Dog Ownership,Street Scene,H23SD000044050,
http://statistics.data.gov.uk/id/local-authority/29UP,Tonbridge & Malling Borough Council,1/4/2023,0022027318/43,22027318, 56523.64,Urbaser LTD,01718800,,Contract Payments,Street Scene,H23SD000054001,
http://statistics.data.gov.uk/id/local-authority/29UP,Tonbridge & Malling Borough Council,1/4/2023,0022027318/44,22027318, 356.30,Urbaser LTD,01718800,,General Maintenance,Dry Recycling,H34SR000020301,
http://statistics.data.gov.uk/id/local-authority/29UP,Tonbridge & Malling Borough Council,1/4/2023,0022027318/45,22027318, 84198.36,Urbaser LTD,01718800,,Contract Payments,Dry Recycling,H34SR000054001,
http://statistics.data.gov.uk/id/local-authority/29UP,Tonbridge & Malling Borough Council,1/4/2023,0022027318/46,22027318, 32945.93,Urbaser LTD,01718800,,Contract Payments,Food Recycling,H34SS000054001,
http://statistics.data.gov.uk/id/local-authority/29UP,Tonbridge & Malling Borough Council,1/4/2023,0022027318/47,22027318, 17888.09,Urbaser LTD,01718800,,Contract Payments,Garden Waste Recycling,H34ST000054001,
http://statistics.data.gov.uk/id/local-authority/29UP,Tonbridge & Malling Borough Council,1/4/2023,0022027318/5,22027318, 740.63,Urbaser LTD,01718800,,Maintenance of Grounds,Open Spaces & Amenity Areas,B22LE000020402,
http://statistics.data.gov.uk/id/local-authority/29UP,Tonbridge & Malling Borough Council,1/4/2023,0022027318/6,22027318, 13.93,Urbaser LTD,01718800,,Dog Bin Emptying,Open Spaces & Amenity Areas,B22LE000044012,
http://statistics.data.gov.uk/id/local-authority/29UP,Tonbridge & Malling Borough Council,1/4/2023,0022027318/7,22027318, 24.04,Urbaser LTD,01718800,,Maintenance of Grounds,Countryside/Woodland Mgt,B22LG000020402,
http://statistics.data.gov.uk/id/local-authority/29UP,Tonbridge & Malling Borough Council,1/4/2023,0022027318/8,22027318, 72.20,Urbaser LTD,01718800,,Maintenance of Grounds,Leybourne Lakes Country Park,B22LK000020402,
http://statistics.data.gov.uk/id/local-authority/29UP,Tonbridge & Malling Borough Council,1/4/2023,0022027318/9,22027318, 26.13,Urbaser LTD,01718800,,Dog Bin Emptying,Leybourne Lakes Country Park,B22LK000044012,
http://statistics.data.gov.uk/id/local-authority/29UP,Tonbridge & Malling Borough Council,1/4/2023,0022027319/1,22027319, 14.56,Mrs D Pellen,01151100,,Food Sampling,Food & Safety - Food Safety,H35SX000054011,
http://statistics.data.gov.uk/id/local-authority/29UP,Tonbridge & Malling Borough Council,1/4/2023,0022027321/1,22027321, 1062.47,KCC - L.A.S.E.R Commercial Services ,00184300,,Electricity,Public Conveniences,H22SCH00921002,
http://statistics.data.gov.uk/id/local-authority/29UP,Tonbridge & Malling Borough Council,1/4/2023,0022027322/1,22027322, 455.26,KCC - L.A.S.E.R Commercial Services ,00184300,,Air Quality Monitoring,Environmental Protection,H32SN000054016,
http://statistics.data.gov.uk/id/local-authority/29UP,Tonbridge & Malling Borough Council,1/4/2023,0022027324/1,22027324, 500.00,Dolphin Stairlifts,00698900,,Other Expenses,Disabled Facilities Grant Mand,P03AC000009908,
http://statistics.data.gov.uk/id/local-authority/29UP,Tonbridge & Malling Borough Council,1/4/2023,0022027325/1,22027325, 673.62,KM Media Group Ltd,00053900,,Energy Efficiency Initiatives,Private Sector Housing Renewal,C03BD000044232,220003279
http://statistics.data.gov.uk/id/local-authority/29UP,Tonbridge & Malling Borough Council,1/4/2023,0022027326/1,22027326, 750.00,Counterweight LTD,01506600,,Healthy Living Initiatives,Public Health - Healthy Living,H40SYVH0048145,
http://statistics.data.gov.uk/id/local-authority/29UP,Tonbridge & Malling Borough Council,1/4/2023,0031019135/1,31019135, 170.00,Royal British Legion Industries Ltd,00139700,,Repair & Mtce of Fixed Plant,Boro Highways & Emergency Oper,E01AA000020501,320003459
http://statistics.data.gov.uk/id/local-authority/29UP,Tonbridge & Malling Borough Council,1/4/2023,0031019138/1,31019138, 366.67,Seymour Hire Ltd,00737200,,Transport Repair & Maintenance,Parking On-Street,E10HD000030103,
http://statistics.data.gov.uk/id/local-authority/29UP,Tonbridge & Malling Borough Council,1/4/2023,0031019139/1,31019139, 170.85,British Telecommunications Plc,00012800,,Maintenance - General,Security Services Management,E09GA000040135,
http://statistics.data.gov.uk/id/local-authority/29UP,Tonbridge & Malling Borough Council,1/4/2023,0031019140/1,31019140, 175.55,British Telecommunications Plc,00012800,,Maintenance - General,Security Services Management,E09GA000040135,
http://statistics.data.gov.uk/id/local-authority/29UP,Tonbridge & Malling Borough Council,1/4/2023,0032009985/3,32009985, 1609.50,G2 Recruitment Solutions,01786000,,Temporary Staff,Planning Sals&Overheads,D01AJDJ0111300,
http://statistics.data.gov.uk/id/local-authority/29UP,Tonbridge & Malling Borough Council,1/4/2023,0032009986/3,32009986, 2590.00,G2 Recruitment Solutions,01786000,,Temporary Staff,Planning Sals&Overheads,D01AJDJ0111300,
http://statistics.data.gov.uk/id/local-authority/29UP,Tonbridge & Malling Borough Council,1/4/2023,0032009988/3,32009988, 1884.50,The Oyster Partnership,01196400,,Temporary Staff,Planning Sals&Overheads,D01AJDJ0111300,
http://statistics.data.gov.uk/id/local-authority/29UP,Tonbridge & Malling Borough Council,1/4/2023,0032009989/3,32009989, 1419.00,The Oyster Partnership,01196400,,Temporary Staff,Planning Sals&Overheads,D01AJDJ0111300,
http://statistics.data.gov.uk/id/local-authority/29UP,Tonbridge & Malling Borough Council,1/4/2023,0032009990/3,32009990, 1019.73,The Oyster Partnership,01196400,,Temporary Staff,Planning Sals&Overheads,D01AJDJ0111300,
http://statistics.data.gov.uk/id/local-authority/29UP,Tonbridge & Malling Borough Council,1/4/2023,0032009991/3,32009991, 1462.00,Carrington West Limited,01844500,,Temporary Staff,Planning Sals&Overheads,D01AJDJ0111300,
http://statistics.data.gov.uk/id/local-authority/29UP,Tonbridge & Malling Borough Council,1/4/2023,0032009992/1,32009992, 1336.16,The Oyster Partnership,01196400,,Temporary Staff,Planning Sals&Overheads,D01AJDJ0111300,
http://statistics.data.gov.uk/id/local-authority/29UP,Tonbridge & Malling Borough Council,1/4/2023,0032009993/1,32009993, 2081.20,The Oyster Partnership,01196400,,Temporary Staff,Planning Sals&Overheads,D01AJDJ0111300,
http://statistics.data.gov.uk/id/local-authority/29UP,Tonbridge & Malling Borough Council,1/4/2023,0032009994/1,32009994, 1806.42,The Oyster Partnership,01196400,,Temporary Staff,Planning Sals&Overheads,D01AJDJ0111300,
http://statistics.data.gov.uk/id/local-authority/29UP,Tonbridge & Malling Borough Council,1/4/2023,0032009995/1,32009995, 1880.00,The Oyster Partnership,01196400,,Temporary Staff,Planning Sals&Overheads,D01AJDJ0111300,
http://statistics.data.gov.uk/id/local-authority/29UP,Tonbridge & Malling Borough Council,1/4/2023,0032009996/1,32009996, 1939.30,The Oyster Partnership,01196400,,Temporary Staff,Planning Sals&Overheads,D01AJDJ0111300,
http://statistics.data.gov.uk/id/local-authority/29UP,Tonbridge & Malling Borough Council,1/4/2023,0032009997/1,32009997, 1612.50,Carrington West Limited,01844500,,Temporary Staff,Planning Sals&Overheads,D01AJDJ0111300,
http://statistics.data.gov.uk/id/local-authority/29UP,Tonbridge & Malling Borough Council,1/4/2023,0032009998/1,32009998, 1612.50,Carrington West Limited,01844500,,Temporary Staff,Planning Sals&Overheads,D01AJDJ0111300,
http://statistics.data.gov.uk/id/local-authority/29UP,Tonbridge & Malling Borough Council,1/4/2023,0041035060/1,41035060, 556.60,Morgan Hunt UK Ltd,01086900,,Temporary Staff,Finance Sals&Overheads,D01AFDF1111300,
http://statistics.data.gov.uk/id/local-authority/29UP,Tonbridge & Malling Borough Council,1/4/2023,0041035061/1,41035061, 7.95,KCS,00054200,,Stationery,Finance Sals&Overheads,D01AF000043003,410032309
http://statistics.data.gov.uk/id/local-authority/29UP,Tonbridge & Malling Borough Council,1/4/2023,0041035061/2,41035061, 7.95,KCS,00054200,,Stationery,Finance Sals&Overheads,D01AF000043003,410032309
http://statistics.data.gov.uk/id/local-authority/29UP,Tonbridge & Malling Borough Council,1/4/2023,0041035061/3,41035061, 43.98,KCS,00054200,,Stationery,Finance Sals&Overheads,D01AF000043003,410032309
http://statistics.data.gov.uk/id/local-authority/29UP,Tonbridge & Malling Borough Council,1/4/2023,0041035062/1,41035062, 11862.50,Grant Thornton UK LLP,01407400,,Audit Fees,Public Accountability,D29LR000044223,410032259
http://statistics.data.gov.uk/id/local-authority/29UP,Tonbridge & Malling Borough Council,1/4/2023,0041035063/1,41035063, 78.90,Adelante Software Limited,01393800,812115871,Credit Card Commission,Banking Arrangements,D43QK000044082,
http://statistics.data.gov.uk/id/local-authority/29UP,Tonbridge & Malling Borough Council,1/9/2023,0041035070/1,41035070, 3693.37,National Westminster Bank Plc,00069400,,Bank Charges,Banking Arrangements,D43QK000044222,
http://statistics.data.gov.uk/id/local-authority/29UP,Tonbridge & Malling Borough Council,1/11/2023,0011045381/1,11045381, 150.00,Francis Taylor Building,01688700,,Legal Fees,Legal Sals&Overheads,D01ARDR0044002,
http://statistics.data.gov.uk/id/local-authority/29UP,Tonbridge & Malling Borough Council,1/11/2023,0011045382/1,11045382, 1575.00,Venn Group Ltd,00914300,,Temporary Staff,Legal Sals&Overheads,D01ARDR0011300,
http://statistics.data.gov.uk/id/local-authority/29UP,Tonbridge & Malling Borough Council,1/11/2023,0011045383/1,11045383, 616.42,KH Recruitment Ltd,01738900,,Salaries & On Costs,Licences - Fee Paying,H27SH000015100,
http://statistics.data.gov.uk/id/local-authority/29UP,Tonbridge & Malling Borough Council,1/11/2023,0011045384/1,11045384, 216.58,KH Recruitment Ltd,01738900,,Salaries & On Costs,Licences - Fee Paying,H27SH000015100,
http://statistics.data.gov.uk/id/local-authority/29UP,Tonbridge & Malling Borough Council,1/11/2023,0011045385/1,11045385, 5000.00,S Hohler Discretionary Trust,01878800,,Economic Development & Regen,Eco Dev & Reg Gen Bus Support,D52TD000047027,
http://statistics.data.gov.uk/id/local-authority/29UP,Tonbridge & Malling Borough Council,1/11/2023,0011045386/1,11045386, 76.20,Sideways Media,01836200,,Marketing,Tonbridge Castle Gatehouse,B40TG000044215,
http://statistics.data.gov.uk/id/local-authority/29UP,Tonbridge & Malling Borough Council,1/11/2023,0011045387/1,11045387, 32.12,Ark Trading/Goldstar,01607200,113179830,Uniforms,Cleaning & Security,D21FD000042002,
http://statistics.data.gov.uk/id/local-authority/29UP,Tonbridge & Malling Borough Council,1/11/2023,0011045388/1,11045388, 714.00,Thomson Snell & Passmore,00101700,,Legal Fees,Legal Sals&Overheads,D01ARDR0044002,
http://statistics.data.gov.uk/id/local-authority/29UP,Tonbridge & Malling Borough Council,1/11/2023,0011045389/1,11045389, 1217.80,Sellick Partnership Group Limited,01336800,,Temporary Staff,Legal Sals&Overheads,D01ARDR0011300,
http://statistics.data.gov.uk/id/local-authority/29UP,Tonbridge & Malling Borough Council,1/11/2023,0011045390/1,11045390, 1217.80,Sellick Partnership Group Limited,01336800,,Temporary Staff,Legal Sals&Overheads,D01ARDR0011300,
http://statistics.data.gov.uk/id/local-authority/29UP,Tonbridge & Malling Borough Council,1/11/2023,0011045391/1,11045391, 86.28,Atlas Facilities Managment Limited ,01075900,,Miscellaneous Services,Cleaning & Security,D21FDDD1044015,
http://statistics.data.gov.uk/id/local-authority/29UP,Tonbridge & Malling Borough Council,1/11/2023,0011045392/1,11045392, 43.14,Atlas Facilities Managment Limited ,01075900,,Miscellaneous Services,Cleaning & Security,D21FDDD6044015,
http://statistics.data.gov.uk/id/local-authority/29UP,Tonbridge & Malling Borough Council,1/11/2023,0011045393/1,11045393, 123.59,Atlas Facilities Managment Limited ,01075900,,Miscellaneous Services,Cleaning & Security,D21FDDD5044015,
http://statistics.data.gov.uk/id/local-authority/29UP,Tonbridge & Malling Borough Council,1/11/2023,0011045394/1,11045394, 59.50,Kohler Mira Limited,00902600,779588443,BRREP Servicing - pool plant,Larkfield Leisure Centre,M15HDP20001910,
http://statistics.data.gov.uk/id/local-authority/29UP,Tonbridge & Malling Borough Council,1/11/2023,0011045395/1,11045395, 129.00,BML Building Services Ltd,01505000,,BRREP Response - General,Tonbridge Castle / CAB,M15KFP50001997,
http://statistics.data.gov.uk/id/local-authority/29UP,Tonbridge & Malling Borough Council,1/11/2023,0011045396/1,11045396, 154.00,BML Building Services Ltd,01505000,,BRREP Response - General,PC - General,M15JAP50001997,
http://statistics.data.gov.uk/id/local-authority/29UP,Tonbridge & Malling Borough Council,1/11/2023,0011045397/1,11045397, 150.00,BML Building Services Ltd,01505000,,BRREP Response - General,Larkfield Leisure Centre,M15HDP50001997,
http://statistics.data.gov.uk/id/local-authority/29UP,Tonbridge & Malling Borough Council,1/11/2023,0011045398/1,11045398, 415.50,Colousped Limited,00623000,,Maintenance - General,Printing,D22GA000040135,
http://statistics.data.gov.uk/id/local-authority/29UP,Tonbridge & Malling Borough Council,1/11/2023,0011045399/1,11045399, 1423.48,Royal Mail,00086200,,Purchases,Mailsort Stock Account,K37BR000001002,
http://statistics.data.gov.uk/id/local-authority/29UP,Tonbridge & Malling Borough Council,1/11/2023,0011045399/2,11045399, 5.41,Royal Mail,00086200,,Purchases,Mailsort Stock Account,K37BR000001002,
http://statistics.data.gov.uk/id/local-authority/29UP,Tonbridge & Malling Borough Council,1/11/2023,0011045399/3,11045399, 2.45,Royal Mail,00086200,,Purchases,Mailsort Stock Account,K37BR000001002,
http://statistics.data.gov.uk/id/local-authority/29UP,Tonbridge & Malling Borough Council,1/11/2023,0011045400/1,11045400, 591.28,KCS,00054200,,Estate Management Charge,Land Review,D40PS000020400,
http://statistics.data.gov.uk/id/local-authority/29UP,Tonbridge & Malling Borough Council,1/11/2023,0011045402/1,11045402, 99.18,Royal Mail,00086200,,Postages - Business Reply,Electoral Registration,D31MF000045003,
http://statistics.data.gov.uk/id/local-authority/29UP,Tonbridge & Malling Borough Council,1/11/2023,0011045402/2,11045402, 6.84,Royal Mail,00086200,,Purchases,Business Reply Stock Account,K14AT000001002,
http://statistics.data.gov.uk/id/local-authority/29UP,Tonbridge & Malling Borough Council,1/11/2023,0011045403/1,11045403, 638.24,Premier Paper Group,01421800,,Purchases - Paper,Printing,D22GA000040102,
http://statistics.data.gov.uk/id/local-authority/29UP,Tonbridge & Malling Borough Council,1/11/2023,0011045404/1,11045404, 74.72,Biffa Waste Services Ltd,01284500,,Trade Refuse Charges,Cleaning & Security,D21FD000044008,
http://statistics.data.gov.uk/id/local-authority/29UP,Tonbridge & Malling Borough Council,1/11/2023,0011045405/1,11045405, 42.72,Biffa Waste Services Ltd,01284500,,Trade Refuse Charges,Cleaning & Security,D21FD000044008,
http://statistics.data.gov.uk/id/local-authority/29UP,Tonbridge & Malling Borough Council,1/11/2023,0011045406/1,11045406, 164.61,Biffa Waste Services Ltd,01284500,,Trade Refuse Charges,Cleaning & Security,D21FD000044008,
http://statistics.data.gov.uk/id/local-authority/29UP,Tonbridge & Malling Borough Council,1/11/2023,0011045407/1,11045407, 231.15,Biffa Waste Services Ltd,01284500,,Trade Refuse Charges,Cleaning & Security,D21FD000044008,
http://statistics.data.gov.uk/id/local-authority/29UP,Tonbridge & Malling Borough Council,1/11/2023,0011045408/1,11045408, 42.72,Biffa Waste Services Ltd,01284500,,Trade Refuse Charges,Cleaning & Security,D21FD000044008,
http://statistics.data.gov.uk/id/local-authority/29UP,Tonbridge & Malling Borough Council,1/11/2023,0011045409/3,11045409, 200.33,Biffa Waste Services Ltd,01284500,,Trade Refuse Charges,Cleaning & Security,D21FD000044008,
http://statistics.data.gov.uk/id/local-authority/29UP,Tonbridge & Malling Borough Council,1/11/2023,0011045410/1,11045410, 1561.36,The Oyster Partnership,01196400,,Temporary Staff,Admin & Prop Sals&Overheads,D01AADA1111300,
http://statistics.data.gov.uk/id/local-authority/29UP,Tonbridge & Malling Borough Council,1/11/2023,0011045413/1,11045413, 746.64,Idox Software Ltd,00962400,,Electronic Elector Responses,Electoral Registration,D31MF000044102,
http://statistics.data.gov.uk/id/local-authority/29UP,Tonbridge & Malling Borough Council,1/11/2023,0011045414/1,11045414, 35.81,Ark Trading/Goldstar,01607200,113179830,Uniforms,Cleaning & Security,D21FD000042002,110069618
http://statistics.data.gov.uk/id/local-authority/29UP,Tonbridge & Malling Borough Council,1/11/2023,0011045414/2,11045414, 10.38,Ark Trading/Goldstar,01607200,113179830,Uniforms,Cleaning & Security,D21FD000042002,110069618
http://statistics.data.gov.uk/id/local-authority/29UP,Tonbridge & Malling Borough Council,1/11/2023,0011045414/3,11045414, 12.75,Ark Trading/Goldstar,01607200,113179830,Uniforms,Cleaning & Security,D21FD000042002,110069618
http://statistics.data.gov.uk/id/local-authority/29UP,Tonbridge & Malling Borough Council,1/11/2023,0011045415/1,11045415, 192.00,BML Building Services Ltd,01505000,,Other Expenses,Homeless Accommodation,P03AX000009908,110069880
http://statistics.data.gov.uk/id/local-authority/29UP,Tonbridge & Malling Borough Council,1/11/2023,0011045416/1,11045416, 1980.00,G C Industrial Heating Services,00578100,,BRREP Servicing - pool plant,Larkfield Leisure Centre,M15HDP20001910,110069964
http://statistics.data.gov.uk/id/local-authority/29UP,Tonbridge & Malling Borough Council,1/11/2023,0011045418/1,11045418, 464.00,Coolburn Air Conditioning Ltd,01137900,,BRREP Servicing - air handling,Larkfield Leisure Centre,M15HDP20001936,110069935
http://statistics.data.gov.uk/id/local-authority/29UP,Tonbridge & Malling Borough Council,1/11/2023,0011045419/1,11045419, 162.50,NKM Fire Protection Ltd,01784600,,BRREP Servicing - FireAlarmSys,Tonbridge Swimming Pool,M15HBP20001937,110069950
http://statistics.data.gov.uk/id/local-authority/29UP,Tonbridge & Malling Borough Council,1/11/2023,0011045421/1,11045421, 422.60,Marlow Fire & Security (BBC)  Ltd,00008800,342427963,BRREP Servicing - Gas Ext Syst,Gibson Building West,M15KBP20001979,110069912
http://statistics.data.gov.uk/id/local-authority/29UP,Tonbridge & Malling Borough Council,1/11/2023,0011045423/1,11045423, 1400.00,BML Building Services Ltd,01505000,,BRREP Response - General,Gibson Building East,M15KGP50001997,110069959
http://statistics.data.gov.uk/id/local-authority/29UP,Tonbridge & Malling Borough Council,1/11/2023,0011045424/1,11045424, 772.00,Coolburn Air Conditioning Ltd,01137900,,BRREP Servicing - air handling,Angel Centre,M15HAP20001936,110069751
http://statistics.data.gov.uk/id/local-authority/29UP,Tonbridge & Malling Borough Council,1/11/2023,0011045426/1,11045426, 165.00,Southern Care Maintenance,01282600,,BRREP Servicing - Diasbled Acc,Tonbridge Castle / CAB,M15KFP20001981,110069608
http://statistics.data.gov.uk/id/local-authority/29UP,Tonbridge & Malling Borough Council,1/11/2023,0011045427/1,11045427, 780.00,Willow Pumps Ltd,00114100,,BRREP Servicing - Pumping Stn,Ton Sportsgrnd Bldgs / Toilets,M15HCP20001931,110069929
http://statistics.data.gov.uk/id/local-authority/29UP,Tonbridge & Malling Borough Council,1/11/2023,0011045428/1,11045428, 4175.00,MEPS Consulting Ltd,01868800,,BRREP Servicing - air handling,Larkfield Leisure Centre,M15HDP20001936,110069882
http://statistics.data.gov.uk/id/local-authority/29UP,Tonbridge & Malling Borough Council,1/11/2023,0011045429/1,11045429, 140.00,East Sussex Fire Ltd,01843100,,Repairs & Mtce to Buildings,Homelessness,C01AATNHS20101,110069587
http://statistics.data.gov.uk/id/local-authority/29UP,Tonbridge & Malling Borough Council,1/11/2023,0011045430/1,11045430, 383.88,KCS,00054200,,Cleaning & Domestic Supplies,Cleaning & Security,D21FD000026001,110069945
http://statistics.data.gov.uk/id/local-authority/29UP,Tonbridge & Malling Borough Council,1/11/2023,0011045430/2,11045430, 143.40,KCS,00054200,,Cleaning & Domestic Supplies,Cleaning & Security,D21FD000026001,110069945
http://statistics.data.gov.uk/id/local-authority/29UP,Tonbridge & Malling Borough Council,1/11/2023,0011045431/1,11045431, 25.99,KCS,00054200,,Cleaning & Domestic Supplies,Cleaning & Security,D21FDDD1026001,110069928
http://statistics.data.gov.uk/id/local-authority/29UP,Tonbridge & Malling Borough Council,1/11/2023,0011045431/2,11045431, 25.99,KCS,00054200,,Cleaning & Domestic Supplies,Cleaning & Security,D21FDDD1026001,110069928
http://statistics.data.gov.uk/id/local-authority/29UP,Tonbridge & Malling Borough Council,1/11/2023,0012008581/1,12008581, 127.83,KCS,00054200,,Leasing Charges,Multi Function Devices,D22GB000044038,
http://statistics.data.gov.uk/id/local-authority/29UP,Tonbridge & Malling Borough Council,1/11/2023,0012008582/1,12008582, 105.51,KCS,00054200,,Leasing Charges,Multi Function Devices,D22GB000044038,
http://statistics.data.gov.uk/id/local-authority/29UP,Tonbridge & Malling Borough Council,1/11/2023,0012008583/1,12008583, 130.63,KCS,00054200,,Leasing Charges,Multi Function Devices,D22GB000044038,
http://statistics.data.gov.uk/id/local-authority/29UP,Tonbridge & Malling Borough Council,1/11/2023,0012008584/1,12008584, 130.63,KCS,00054200,,Leasing Charges,Multi Function Devices,D22GB000044038,
http://statistics.data.gov.uk/id/local-authority/29UP,Tonbridge & Malling Borough Council,1/11/2023,0012008585/1,12008585, 122.61,KCS,00054200,,Leasing Charges,Multi Function Devices,D22GB000044038,
http://statistics.data.gov.uk/id/local-authority/29UP,Tonbridge & Malling Borough Council,1/11/2023,0012008586/1,12008586, 122.61,KCS,00054200,,Leasing Charges,Multi Function Devices,D22GB000044038,
http://statistics.data.gov.uk/id/local-authority/29UP,Tonbridge & Malling Borough Council,1/11/2023,0012008587/1,12008587, 122.61,KCS,00054200,,Leasing Charges,Multi Function Devices,D22GB000044038,
http://statistics.data.gov.uk/id/local-authority/29UP,Tonbridge & Malling Borough Council,1/11/2023,0012008588/1,12008588, 122.61,KCS,00054200,,Leasing Charges,Multi Function Devices,D22GB000044038,
http://statistics.data.gov.uk/id/local-authority/29UP,Tonbridge & Malling Borough Council,1/11/2023,0012008589/1,12008589, 130.63,KCS,00054200,,Leasing Charges,Multi Function Devices,D22GB000044038,
http://statistics.data.gov.uk/id/local-authority/29UP,Tonbridge & Malling Borough Council,1/11/2023,0012008590/1,12008590, 82.58,KCS,00054200,,Leasing Charges,Multi Function Devices,D22GB000044038,
http://statistics.data.gov.uk/id/local-authority/29UP,Tonbridge & Malling Borough Council,1/11/2023,0012008591/1,12008591, 91.95,KCS,00054200,,Leasing Charges,Multi Function Devices,D22GB000044038,
http://statistics.data.gov.uk/id/local-authority/29UP,Tonbridge & Malling Borough Council,1/11/2023,0012008592/1,12008592, 122.61,KCS,00054200,,Leasing Charges,Multi Function Devices,D22GB000044038,
http://statistics.data.gov.uk/id/local-authority/29UP,Tonbridge & Malling Borough Council,1/11/2023,0012008594/1,12008594, 646.99,KCS,00054200,,Leasing Charges,Multi Function Devices,D22GB000044038,
http://statistics.data.gov.uk/id/local-authority/29UP,Tonbridge & Malling Borough Council,1/11/2023,0012008595/1,12008595, 559.50,KCS,00054200,,Leasing Charges,Multi Function Devices,D22GB000044038,
http://statistics.data.gov.uk/id/local-authority/29UP,Tonbridge & Malling Borough Council,1/11/2023,0012008596/1,12008596, 2.00,CCS Media Ltd,00018000,,Delivery Expenses,Information Technology,D27KD000044069,410032313
http://statistics.data.gov.uk/id/local-authority/29UP,Tonbridge & Malling Borough Council,1/11/2023,0012008596/2,12008596, 217.99,CCS Media Ltd,00018000,,Initial Furniture & Equipment,Capital Renewals IT,P06FBFB1009906,410032313
http://statistics.data.gov.uk/id/local-authority/29UP,Tonbridge & Malling Borough Council,1/11/2023,0012008597/1,12008597, 1499.00,CyberSmart Ltd,01878600,,Consultancy Fees,Information Technology,D27KD000044011,410032315
http://statistics.data.gov.uk/id/local-authority/29UP,Tonbridge & Malling Borough Council,1/11/2023,0012008598/1,12008598, 750.00,Canon (UK) Limited,00298700,,Maintenance - Ancillary Equip,Information Technology,D27KD000040137,
http://statistics.data.gov.uk/id/local-authority/29UP,Tonbridge & Malling Borough Council,1/11/2023,0012008598/2,12008598, 138.00,Canon (UK) Limited,00298700,,Maintenance - Ancillary Equip,Information Technology,D27KD000040137,
http://statistics.data.gov.uk/id/local-authority/29UP,Tonbridge & Malling Borough Council,1/11/2023,0012008599/1,12008599, 5.32,Daisy Communications,01068100,,Telephones - Rentals,General Admin Telephones,D24GT000045005,
http://statistics.data.gov.uk/id/local-authority/29UP,Tonbridge & Malling Borough Council,1/11/2023,0012008599/2,12008599, 285.76,Daisy Communications,01068100,,Telephones - Call Costs,General Admin Telephones,D24GT000045006,
http://statistics.data.gov.uk/id/local-authority/29UP,Tonbridge & Malling Borough Council,1/11/2023,0012008599/3,12008599, 95.92,Daisy Communications,01068100,,Leased Lines & Modems,Information Technology,D27KD000045011,
http://statistics.data.gov.uk/id/local-authority/29UP,Tonbridge & Malling Borough Council,1/11/2023,0012008599/4,12008599, 74.46,Daisy Communications,01068100,,Maintenance - General,Security Services Management,E09GA000040135,
http://statistics.data.gov.uk/id/local-authority/29UP,Tonbridge & Malling Borough Council,1/11/2023,0012008600/10,12008600, 9.00,O2 UK Ltd,01268000,,Mobile Telephones,Admin & Prop Sals&Overheads,D01AADA1245013,
http://statistics.data.gov.uk/id/local-authority/29UP,Tonbridge & Malling Borough Council,1/11/2023,0012008600/11,12008600, 3.00,O2 UK Ltd,01268000,,Mobile Telephones,Chief Exec Sals&Overheads,D01ACDC0045013,
http://statistics.data.gov.uk/id/local-authority/29UP,Tonbridge & Malling Borough Council,1/11/2023,0012008600/12,12008600, 3.00,O2 UK Ltd,01268000,,Mobile Telephones,Chief Exec Sals&Overheads,D01ACDC0145013,
http://statistics.data.gov.uk/id/local-authority/29UP,Tonbridge & Malling Borough Council,1/11/2023,0012008600/13,12008600, 3.00,O2 UK Ltd,01268000,,Mobile Telephones,Chief Exec Sals&Overheads,D01ACDC0245013,
http://statistics.data.gov.uk/id/local-authority/29UP,Tonbridge & Malling Borough Council,1/11/2023,0012008600/14,12008600, 3.43,O2 UK Ltd,01268000,,Mobile Telephones,Technical Sals&Overheads,D01AEDE0045013,
http://statistics.data.gov.uk/id/local-authority/29UP,Tonbridge & Malling Borough Council,1/11/2023,0012008600/15,12008600, 6.00,O2 UK Ltd,01268000,,Mobile Telephones,Technical Sals&Overheads,D01AEDE0145013,
http://statistics.data.gov.uk/id/local-authority/29UP,Tonbridge & Malling Borough Council,1/11/2023,0012008600/16,12008600, 9.90,O2 UK Ltd,01268000,,Mobile Telephones,Technical Sals&Overheads,D01AEDE0245013,
http://statistics.data.gov.uk/id/local-authority/29UP,Tonbridge & Malling Borough Council,1/11/2023,0012008600/17,12008600, 41.99,O2 UK Ltd,01268000,,Mobile Telephones,Technical Sals&Overheads,D01AEDE0445013,
http://statistics.data.gov.uk/id/local-authority/29UP,Tonbridge & Malling Borough Council,1/11/2023,0012008600/18,12008600, 3.00,O2 UK Ltd,01268000,,Mobile Telephones,Technical Sals&Overheads,D01AEDE0545013,
http://statistics.data.gov.uk/id/local-authority/29UP,Tonbridge & Malling Borough Council,1/11/2023,0012008600/19,12008600, 12.00,O2 UK Ltd,01268000,,Mobile Telephones,Finance Sals&Overheads,D01AFDF0045013,
http://statistics.data.gov.uk/id/local-authority/29UP,Tonbridge & Malling Borough Council,1/11/2023,0012008600/20,12008600, 6.00,O2 UK Ltd,01268000,,Mobile Telephones,Finance Sals&Overheads,D01AFDF0945013,
http://statistics.data.gov.uk/id/local-authority/29UP,Tonbridge & Malling Borough Council,1/11/2023,0012008600/21,12008600, 12.00,O2 UK Ltd,01268000,,Mobile Telephones,St Scene & Leis Sals&Overheads,D01AGDG0045013,
http://statistics.data.gov.uk/id/local-authority/29UP,Tonbridge & Malling Borough Council,1/11/2023,0012008600/22,12008600, 12.00,O2 UK Ltd,01268000,,Mobile Telephones,St Scene & Leis Sals&Overheads,D01AGDG0145013,
http://statistics.data.gov.uk/id/local-authority/29UP,Tonbridge & Malling Borough Council,1/11/2023,0012008600/23,12008600, 9.30,O2 UK Ltd,01268000,,Mobile Telephones,St Scene & Leis Sals&Overheads,D01AGDG0445013,
http://statistics.data.gov.uk/id/local-authority/29UP,Tonbridge & Malling Borough Council,1/11/2023,0012008600/24,12008600, 36.20,O2 UK Ltd,01268000,,Mobile Telephones,St Scene & Leis Sals&Overheads,D01AGDG2045013,
http://statistics.data.gov.uk/id/local-authority/29UP,Tonbridge & Malling Borough Council,1/11/2023,0012008600/25,12008600, 9.00,O2 UK Ltd,01268000,,Mobile Telephones,Planning Sals&Overheads,D01AJDJ0045013,
http://statistics.data.gov.uk/id/local-authority/29UP,Tonbridge & Malling Borough Council,1/11/2023,0012008600/26,12008600, 12.00,O2 UK Ltd,01268000,,Mobile Telephones,Planning Sals&Overheads,D01AJDJ0245013,
http://statistics.data.gov.uk/id/local-authority/29UP,Tonbridge & Malling Borough Council,1/11/2023,0012008600/27,12008600, 6.00,O2 UK Ltd,01268000,,Mobile Telephones,Legal Sals&Overheads,D01ARDR0045013,
http://statistics.data.gov.uk/id/local-authority/29UP,Tonbridge & Malling Borough Council,1/11/2023,0012008600/28,12008600, 12.00,O2 UK Ltd,01268000,,Mobile Telephones,Legal Sals&Overheads,D01ARDR0445013,
http://statistics.data.gov.uk/id/local-authority/29UP,Tonbridge & Malling Borough Council,1/11/2023,0012008600/29,12008600, 3.00,O2 UK Ltd,01268000,,Mobile Telephones,Legal Sals&Overheads,D01ARDR0745013,
http://statistics.data.gov.uk/id/local-authority/29UP,Tonbridge & Malling Borough Council,1/11/2023,0012008600/30,12008600, 3.00,O2 UK Ltd,01268000,,Mobile Telephones,Env Hlth & Hsg Sals&Overheads,D01AVDV0045013,
http://statistics.data.gov.uk/id/local-authority/29UP,Tonbridge & Malling Borough Council,1/11/2023,0012008600/31,12008600, 9.00,O2 UK Ltd,01268000,,Mobile Telephones,Env Hlth & Hsg Sals&Overheads,D01AVDV0145013,
http://statistics.data.gov.uk/id/local-authority/29UP,Tonbridge & Malling Borough Council,1/11/2023,0012008600/32,12008600, 6.00,O2 UK Ltd,01268000,,Mobile Telephones,Env Hlth & Hsg Sals&Overheads,D01AVDV0345013,
http://statistics.data.gov.uk/id/local-authority/29UP,Tonbridge & Malling Borough Council,1/11/2023,0012008600/33,12008600, 3.00,O2 UK Ltd,01268000,,Mobile Telephones,Env Hlth & Hsg Sals&Overheads,D01AVDV0745013,
http://statistics.data.gov.uk/id/local-authority/29UP,Tonbridge & Malling Borough Council,1/11/2023,0012008600/34,12008600, 6.00,O2 UK Ltd,01268000,,Mobile Telephones,Env Hlth & Hsg Sals&Overheads,D01AVDV0945013,
http://statistics.data.gov.uk/id/local-authority/29UP,Tonbridge & Malling Borough Council,1/11/2023,0012008600/35,12008600, 9.30,O2 UK Ltd,01268000,,Mobile Telephones,Customer Services,D23CS000045013,
http://statistics.data.gov.uk/id/local-authority/29UP,Tonbridge & Malling Borough Council,1/11/2023,0012008600/36,12008600, 3.00,O2 UK Ltd,01268000,,Mobile Telephones,Tonbridge Gateway,D23TG000045013,
http://statistics.data.gov.uk/id/local-authority/29UP,Tonbridge & Malling Borough Council,1/11/2023,0012008600/37,12008600, 627.00,O2 UK Ltd,01268000,,Leased Lines & Modems,Information Technology,D27KD000045011,
http://statistics.data.gov.uk/id/local-authority/29UP,Tonbridge & Malling Borough Council,1/11/2023,0012008600/38,12008600, 3.00,O2 UK Ltd,01268000,,Mobile Telephones,Mayoral & Other Member Support,D29LX000045013,
http://statistics.data.gov.uk/id/local-authority/29UP,Tonbridge & Malling Borough Council,1/11/2023,0012008600/39,12008600, 3.00,O2 UK Ltd,01268000,,Emergency Out of Hours Recharg,Refuse Collection,H20SA000045030,
http://statistics.data.gov.uk/id/local-authority/29UP,Tonbridge & Malling Borough Council,1/11/2023,0012008600/40,12008600, 3.00,O2 UK Ltd,01268000,,Emergency Out of Hours Recharg,Street Scene,H23SD000045030,
http://statistics.data.gov.uk/id/local-authority/29UP,Tonbridge & Malling Borough Council,1/11/2023,0012008600/7,12008600, 3.00,O2 UK Ltd,01268000,,Telephones - General,Open Spaces & Amenity Areas,B22LE000045010,
http://statistics.data.gov.uk/id/local-authority/29UP,Tonbridge & Malling Borough Council,1/11/2023,0012008600/8,12008600, 1.03,O2 UK Ltd,01268000,,Mobile Telephones,Admin & Prop Sals&Overheads,D01AADA0045013,
http://statistics.data.gov.uk/id/local-authority/29UP,Tonbridge & Malling Borough Council,1/11/2023,0012008600/9,12008600, 3.00,O2 UK Ltd,01268000,,Mobile Telephones,Admin & Prop Sals&Overheads,D01AADA1045013,
http://statistics.data.gov.uk/id/local-authority/29UP,Tonbridge & Malling Borough Council,1/11/2023,0012008601/1,12008601, 69.45,CCS Media Ltd,00018000,,Purchases,Information Technology,D27KD000040101,410032316
http://statistics.data.gov.uk/id/local-authority/29UP,Tonbridge & Malling Borough Council,1/11/2023,0012008601/2,12008601, 3.00,CCS Media Ltd,00018000,,Delivery Expenses,Information Technology,D27KD000044069,410032316
http://statistics.data.gov.uk/id/local-authority/29UP,Tonbridge & Malling Borough Council,1/11/2023,0012008602/1,12008602, 69.90,CCS Media Ltd,00018000,,Purchases,Information Technology,D27KD000040101,410032317
http://statistics.data.gov.uk/id/local-authority/29UP,Tonbridge & Malling Borough Council,1/11/2023,0012008602/2,12008602, 2.00,CCS Media Ltd,00018000,,Delivery Expenses,Information Technology,D27KD000044069,410032317
http://statistics.data.gov.uk/id/local-authority/29UP,Tonbridge & Malling Borough Council,1/11/2023,0012008603/1,12008603, 816.75,Canon (UK) Limited,00298700,,Maintenance - Ancillary Equip,Information Technology,D27KD000040137,
http://statistics.data.gov.uk/id/local-authority/29UP,Tonbridge & Malling Borough Council,1/11/2023,0021038332/1,21038332, 1900.00,GI Carpets Ltd,00953500,,Initial Furniture & Equipment,Capital Renewals Leisure,P05KGBC0409906,210057030
http://statistics.data.gov.uk/id/local-authority/29UP,Tonbridge & Malling Borough Council,1/11/2023,0021038333/1,21038333, 4730.00,GI Carpets Ltd,00953500,,Initial Furniture & Equipment,Capital Renewals Leisure,P05KGBC0409906,210057029
http://statistics.data.gov.uk/id/local-authority/29UP,Tonbridge & Malling Borough Council,1/11/2023,0021038334/1,21038334, 9425.00,Flex Flooring Ltd,01208600,,Initial Furniture & Equipment,Capital Renewals Leisure,P05KGBC0409906,210057051
http://statistics.data.gov.uk/id/local-authority/29UP,Tonbridge & Malling Borough Council,1/11/2023,0021038336/1,21038336, 4590.46,Clarion Housing,01776300,,Temporary Accommodation,Homelessness,C01AA000044051,
http://statistics.data.gov.uk/id/local-authority/29UP,Tonbridge & Malling Borough Council,1/11/2023,0021038337/1,21038337, 461.68,Automated Limited,00007000,,Initial Furniture & Equipment,Capital Renewals Leisure,P05KGBC0309906,210057043
http://statistics.data.gov.uk/id/local-authority/29UP,Tonbridge & Malling Borough Council,1/11/2023,0021038338/1,21038338, 544.98,G.L. & R.G. Bourne,00737500,,Gates / Security,Haysden Country Park,B22LC000044017,210056722
http://statistics.data.gov.uk/id/local-authority/29UP,Tonbridge & Malling Borough Council,1/11/2023,0021038339/1,21038339, 74.71,G.L. & R.G. Bourne,00737500,,Gates / Security,Haysden Country Park,B22LC000044017,210056722
http://statistics.data.gov.uk/id/local-authority/29UP,Tonbridge & Malling Borough Council,1/11/2023,0021038340/1,21038340, 36.02,B&Q/Screwfix Direct(TradeUKAccount),00141300,,Purchases,Open Spaces & Amenity Areas,B22LE000040101,
http://statistics.data.gov.uk/id/local-authority/29UP,Tonbridge & Malling Borough Council,1/11/2023,0021038341/1,21038341, 16.67,REDACTED PERSONAL DATA,01065500,,Purchases,Haysden Country Park,B22LC000040101,
http://statistics.data.gov.uk/id/local-authority/29UP,Tonbridge & Malling Borough Council,1/11/2023,0022027327/3,22027327, 3247.13,Ward Security LTD,01490000,,Dog Warden,Street Scene,H23SD000044100,
http://statistics.data.gov.uk/id/local-authority/29UP,Tonbridge & Malling Borough Council,1/11/2023,0022027328/3,22027328, 4322.11,Ward Security LTD,01490000,,Dog Warden,Street Scene,H23SD000044100,
http://statistics.data.gov.uk/id/local-authority/29UP,Tonbridge & Malling Borough Council,1/11/2023,0022027329/3,22027329, 5052.50,Specialist Hygiene Services,01466100,,Contract Payments,Public Conveniences,H22SC000054001,
http://statistics.data.gov.uk/id/local-authority/29UP,Tonbridge & Malling Borough Council,1/11/2023,0022027330/3,22027330, 267.75,Premier Inn,01217400,,Temporary Accommodation,Homelessness,C01AA000044051,
http://statistics.data.gov.uk/id/local-authority/29UP,Tonbridge & Malling Borough Council,1/11/2023,0022027331/1,22027331, 16.59,REDACTED PERSONAL DATA,01477000,,Food Sampling,Food & Safety - Food Safety,H35SX000054011,
http://statistics.data.gov.uk/id/local-authority/29UP,Tonbridge & Malling Borough Council,1/11/2023,0022027332/3,22027332, 50.00,Monitor Pest Control Ltd,01476700,,Other Expenses,Pest Control,H24SE000048010,
http://statistics.data.gov.uk/id/local-authority/29UP,Tonbridge & Malling Borough Council,1/11/2023,0022027333/1,22027333, 4879.00,House to Home Lettings Ltd ,01647600,,Temporary Accommodation,Homelessness,C01AA000044051,
http://statistics.data.gov.uk/id/local-authority/29UP,Tonbridge & Malling Borough Council,1/11/2023,0022027334/1,22027334, 3000.00,REDACTED PERSONAL DATA,01879100,,Homelessness Reduction Initiat,Homelessness,C01AANSAP48019,
http://statistics.data.gov.uk/id/local-authority/29UP,Tonbridge & Malling Borough Council,1/11/2023,0022027335/1,22027335, 1116.00,1st  Steps Housing Kent,01716100,,Temporary Accommodation,Homelessness,C01AA000044051,
http://statistics.data.gov.uk/id/local-authority/29UP,Tonbridge & Malling Borough Council,1/11/2023,0022027336/1,22027336, 388.80,Town & Country Housing Group,01385400,,Other Expenses,Disabled Facilities Grant Mand,P03AC000009908,
http://statistics.data.gov.uk/id/local-authority/29UP,Tonbridge & Malling Borough Council,1/11/2023,0022027337/1,22027337, 375.00,Keith Rawlings,01358700,,Temporary Accommodation,Homelessness,C01AA000044051,
http://statistics.data.gov.uk/id/local-authority/29UP,Tonbridge & Malling Borough Council,1/11/2023,0022027338/1,22027338, 37.00,Biffa Waste Services Ltd,01284500,,Trade Refuse Charges,Cleaning & Security,D21FD000044008,
http://statistics.data.gov.uk/id/local-authority/29UP,Tonbridge & Malling Borough Council,1/11/2023,0022027339/1,22027339, 2226.57,The Care Group-Housing & Care Trust,01699600,,Temporary Accommodation,Homelessness,C01AA000044051,
http://statistics.data.gov.uk/id/local-authority/29UP,Tonbridge & Malling Borough Council,1/11/2023,0022027340/1,22027340, 22665.00,Social & Community Care,01768400,,Temporary Accommodation,Homelessness,C01AA000044051,
http://statistics.data.gov.uk/id/local-authority/29UP,Tonbridge & Malling Borough Council,1/11/2023,0022027341/1,22027341, 559.00,Carrington West Limited,01844500,,Temporary Staff,Planning Sals&Overheads,D01AJDJ0111300,
http://statistics.data.gov.uk/id/local-authority/29UP,Tonbridge & Malling Borough Council,1/11/2023,0022027342/1,22027342, 115.00,Ferret Information Systems,01023100,,Subscriptions,Env Hlth & Hsg Sals&Overheads,D01AVDV0747002,220003298
http://statistics.data.gov.uk/id/local-authority/29UP,Tonbridge & Malling Borough Council,1/11/2023,0022027343/1,22027343, 8694.00,Astor Bannerman (Medical) Ltd,00963200,,Other Expenses,Disabled Facilities Grant Mand,P03AC000009908,
http://statistics.data.gov.uk/id/local-authority/29UP,Tonbridge & Malling Borough Council,1/11/2023,0022027344/1,22027344, 1898.85,Elite Complete Build LTD,01625900,,Other Expenses,Disabled Facilities Grant Mand,P03AC000009908,
http://statistics.data.gov.uk/id/local-authority/29UP,Tonbridge & Malling Borough Council,1/11/2023,0022027345/1,22027345, 1249.61,Town & Country Housing Group,01385400,,Other Expenses,Disabled Facilities Grant Mand,P03AC000009908,
http://statistics.data.gov.uk/id/local-authority/29UP,Tonbridge & Malling Borough Council,1/11/2023,0022027346/1,22027346, 2990.29,Mr RA Walker & SJ Walker,01879800,,Other Expenses,Disabled Facilities Grant Mand,P03AC000009908,
http://statistics.data.gov.uk/id/local-authority/29UP,Tonbridge & Malling Borough Council,1/11/2023,0022027347/1,22027347, 114.44,British Gas,01148500,,Electricity,Homelessness,C01AA000021002,
http://statistics.data.gov.uk/id/local-authority/29UP,Tonbridge & Malling Borough Council,1/11/2023,0022027347/2,22027347, 75.95,British Gas,01148500,,Electricity,Homelessness,C01AA000021002,
http://statistics.data.gov.uk/id/local-authority/29UP,Tonbridge & Malling Borough Council,1/11/2023,0022027348/3,22027348, 76.78,Bulb Energy Ltd,01799000,214948301,Electricity,Homelessness,C01AA000021002,
http://statistics.data.gov.uk/id/local-authority/29UP,Tonbridge & Malling Borough Council,1/11/2023,0022027349/1,22027349, 4839.00,Kent Accommodation Ltd,01722000,,Temporary Accommodation,Homelessness,C01AA000044051,
http://statistics.data.gov.uk/id/local-authority/29UP,Tonbridge & Malling Borough Council,1/11/2023,0022027350/1,22027350, 1705.00,Kent Housing,01503200,,Temporary Accommodation,Homelessness,C01AA000044051,
http://statistics.data.gov.uk/id/local-authority/29UP,Tonbridge & Malling Borough Council,1/11/2023,0022027351/1,22027351, 10416.00,Less Homeless Ltd,01489300,,Temporary Accommodation,Homelessness,C01AA000044051,
http://statistics.data.gov.uk/id/local-authority/29UP,Tonbridge & Malling Borough Council,1/11/2023,0022027352/1,22027352, 370.33,Maidstone Borough Council,01173700,,Council Tax,Homelessness,C01AA000023002,
http://statistics.data.gov.uk/id/local-authority/29UP,Tonbridge & Malling Borough Council,1/11/2023,0022027353/1,22027353, 11.22,Maidstone Borough Council,01173700,,Council Tax,Homelessness,C01AA000023002,
http://statistics.data.gov.uk/id/local-authority/29UP,Tonbridge & Malling Borough Council,1/11/2023,0022027354/1,22027354, 22307.00,Paramount Independent Property Suppliers,01595300,,Temporary Accommodation,Homelessness,C01AA000044051,
http://statistics.data.gov.uk/id/local-authority/29UP,Tonbridge & Malling Borough Council,1/11/2023,0022027355/1,22027355, 7281.50,Premier Property Providers,01785400,,Temporary Accommodation,Homelessness,C01AA000044051,
http://statistics.data.gov.uk/id/local-authority/29UP,Tonbridge & Malling Borough Council,1/11/2023,0022027356/1,22027356, 11.00,REDACTED PERSONAL DATA,00713700,,Funeral Expenses,Public Health Act 1984,H26SG000054002,
http://statistics.data.gov.uk/id/local-authority/29UP,Tonbridge & Malling Borough Council,1/11/2023,0022027357/1,22027357, 10044.00,Simon Niblett Lettings,00072600,,Temporary Accommodation,Homelessness,C01AA000044051,
http://statistics.data.gov.uk/id/local-authority/29UP,Tonbridge & Malling Borough Council,1/11/2023,0022027358/1,22027358, 1705.00,Simon Niblett Lettings,00072600,,Temporary Accommodation,Homelessness,C01AA000044051,
http://statistics.data.gov.uk/id/local-authority/29UP,Tonbridge & Malling Borough Council,1/11/2023,0022027360/1,22027360, 2108.00,Smart Property Professionals,01815100,,Temporary Accommodation,Homelessness,C01AA000044051,
http://statistics.data.gov.uk/id/local-authority/29UP,Tonbridge & Malling Borough Council,1/11/2023,0022027361/1,22027361, 8515.44,REDACTED PERSONAL DATA,01880400,,Contribution from Other Bodies,Homelessness,C01AACV1995001,
http://statistics.data.gov.uk/id/local-authority/29UP,Tonbridge & Malling Borough Council,1/11/2023,0022027362/1,22027362, 17419.00,SPA CAFFE LIMITED,00127100,,Temporary Accommodation,Homelessness,C01AA000044051,
http://statistics.data.gov.uk/id/local-authority/29UP,Tonbridge & Malling Borough Council,1/11/2023,0022027363/1,22027363, 395.81,Town & Country Housing Group,01385400,,Other Expenses,Disabled Facilities Grant Mand,P03AC000009908,
http://statistics.data.gov.uk/id/local-authority/29UP,Tonbridge & Malling Borough Council,1/11/2023,0022027364/1,22027364, 2841.39,Elite Complete Build LTD,01625900,,Other Expenses,Disabled Facilities Grant Mand,P03AC000009908,
http://statistics.data.gov.uk/id/local-authority/29UP,Tonbridge & Malling Borough Council,1/11/2023,0031019137/1,31019137, 3425.50,Alpha Parking Ltd,01167300,,Car Parking Action Plan,Parking On-Street,E10HD000020801,
http://statistics.data.gov.uk/id/local-authority/29UP,Tonbridge & Malling Borough Council,1/11/2023,0031019141/3,31019141, 85.74,Shell U.K. Oil Products Limited,01673300,,"Petrol, Diesel & Oil",Parking Off-Street,E10HA000030106,
http://statistics.data.gov.uk/id/local-authority/29UP,Tonbridge & Malling Borough Council,1/11/2023,0031019141/4,31019141, 85.74,Shell U.K. Oil Products Limited,01673300,,"Petrol, Diesel & Oil",Parking On-Street,E10HD000030106,
http://statistics.data.gov.uk/id/local-authority/29UP,Tonbridge & Malling Borough Council,1/11/2023,0031019142/3,31019142, 32.47,B&Q/Screwfix Direct(TradeUKAccount),00141300,,Purchases,Boro Highways & Emergency Oper,E01AA000040101,
http://statistics.data.gov.uk/id/local-authority/29UP,Tonbridge & Malling Borough Council,1/11/2023,0031019146/3,31019146, 2402.89,Marston,01485000,,Adjudication & Enforcement Ser,Parking Off-Street,E10HA000044230,
http://statistics.data.gov.uk/id/local-authority/29UP,Tonbridge & Malling Borough Council,1/11/2023,0031019147/3,31019147, 118.68,Kings Hill Garage Ltd,01546300,,Transport Repair & Maintenance,Parking Off-Street,E10HA000030103,
http://statistics.data.gov.uk/id/local-authority/29UP,Tonbridge & Malling Borough Council,1/11/2023,0031019147/4,31019147, 178.01,Kings Hill Garage Ltd,01546300,,Transport Repair & Maintenance,Parking On-Street,E10HD000030103,
http://statistics.data.gov.uk/id/local-authority/29UP,Tonbridge & Malling Borough Council,1/11/2023,0031019148/1,31019148, 229.53,Kings Hill Garage Ltd,01546300,,Transport Repair & Maintenance,Patrolling,B22LF000030103,210057070
http://statistics.data.gov.uk/id/local-authority/29UP,Tonbridge & Malling Borough Council,1/11/2023,0031019149/1,31019149, 170.85,British Telecommunications Plc,00012800,,Maintenance - General,Security Services Management,E09GA000040135,
http://statistics.data.gov.uk/id/local-authority/29UP,Tonbridge & Malling Borough Council,1/11/2023,0031019150/1,31019150, 40.00,British Telecommunications Plc,00012800,,Maintenance - General,Security Services Management,E09GA000040135,
http://statistics.data.gov.uk/id/local-authority/29UP,Tonbridge & Malling Borough Council,1/11/2023,0031019150/2,31019150, 0.01,British Telecommunications Plc,00012800,,Maintenance - General,Security Services Management,E09GA000040135,
http://statistics.data.gov.uk/id/local-authority/29UP,Tonbridge & Malling Borough Council,1/11/2023,0031019150/3,31019150, 170.85,British Telecommunications Plc,00012800,,Maintenance - General,Security Services Management,E09GA000040135,
http://statistics.data.gov.uk/id/local-authority/29UP,Tonbridge & Malling Borough Council,1/11/2023,0031019151/1,31019151, 371.56,CDER Group,01773300,,Adjudication & Enforcement Ser,Parking Off-Street,E10HA000044230,
http://statistics.data.gov.uk/id/local-authority/29UP,Tonbridge & Malling Borough Council,1/11/2023,0031019152/1,31019152, 735.00,Countrystyle Group,00835900,781981681,Collection of Card,Dry Recycling,H34SR000054008,
http://statistics.data.gov.uk/id/local-authority/29UP,Tonbridge & Malling Borough Council,1/11/2023,0031019153/1,31019153, 500.00,C. S. Mitchell LTD,01704800,,Premises Repairs & Maintenance,Parking Off-Street,E10HA000020601,310042918
http://statistics.data.gov.uk/id/local-authority/29UP,Tonbridge & Malling Borough Council,1/11/2023,0031019153/2,31019153, 275.00,C. S. Mitchell LTD,01704800,,Premises Repairs & Maintenance,Parking Off-Street,E10HA000020601,310042918
http://statistics.data.gov.uk/id/local-authority/29UP,Tonbridge & Malling Borough Council,1/11/2023,0031019154/1,31019154, 147.00,C. S. Mitchell LTD,01704800,,Premises Repairs & Maintenance,Parking Off-Street,E10HA000020601,310042907
http://statistics.data.gov.uk/id/local-authority/29UP,Tonbridge & Malling Borough Council,1/11/2023,0031019155/1,31019155, 1291.50,Derbyshire Aggregates,01259900,,Purchases,Boro Highways & Emergency Oper,E01AA000040101,310042943
http://statistics.data.gov.uk/id/local-authority/29UP,Tonbridge & Malling Borough Council,1/11/2023,0031019156/1,31019156, 1845.00,Derbyshire Aggregates,01259900,,Purchases,Boro Highways & Emergency Oper,E01AA000040101,310042946
http://statistics.data.gov.uk/id/local-authority/29UP,Tonbridge & Malling Borough Council,1/11/2023,0031019157/1,31019157, 202.00,Flowbird Smart City UK Limited,00898700,,Purchases,Parking Off-Street,E10HA000040101,
http://statistics.data.gov.uk/id/local-authority/29UP,Tonbridge & Malling Borough Council,1/11/2023,0031019157/2,31019157, 303.00,Flowbird Smart City UK Limited,00898700,,Purchases,Parking On-Street,E10HD000040101,
http://statistics.data.gov.uk/id/local-authority/29UP,Tonbridge & Malling Borough Council,1/11/2023,0031019158/1,31019158, 1180.00,Nagels,01434000,,Stationery,Parking Off-Street,E10HA000043003,310042870
http://statistics.data.gov.uk/id/local-authority/29UP,Tonbridge & Malling Borough Council,1/11/2023,0031019159/1,31019159, 630.00,Nagels,01434000,,Stationery,Parking Off-Street,E10HA000043003,310042870
http://statistics.data.gov.uk/id/local-authority/29UP,Tonbridge & Malling Borough Council,1/11/2023,0031019160/1,31019160, 2352.00,Nagels,01434000,,Stationery,Parking Off-Street,E10HA000043003,310042870
http://statistics.data.gov.uk/id/local-authority/29UP,Tonbridge & Malling Borough Council,1/11/2023,0031019161/1,31019161, 294.00,Nagels,01434000,,Stationery,Parking Off-Street,E10HA000043003,310042870
http://statistics.data.gov.uk/id/local-authority/29UP,Tonbridge & Malling Borough Council,1/11/2023,0031019162/1,31019162, 45.00,ReferAll Ltd,01817700,,Healthy Living Initiatives,Public Health - Healthy Living,H40SYVH0048145,220003294
http://statistics.data.gov.uk/id/local-authority/29UP,Tonbridge & Malling Borough Council,1/11/2023,0031019163/1,31019163, 500.00,Traffic Enforcement Centre,00604200,,Adjudication & Enforcement Ser,Parking Off-Street,E10HA000044230,
http://statistics.data.gov.uk/id/local-authority/29UP,Tonbridge & Malling Borough Council,1/11/2023,0031019163/2,31019163, 500.00,Traffic Enforcement Centre,00604200,,Adjudication & Enforcement Ser,Parking On-Street,E10HD000044230,
http://statistics.data.gov.uk/id/local-authority/29UP,Tonbridge & Malling Borough Council,1/11/2023,0031019164/1,31019164, 111.30,Imperial Civil Enforcement Solutions,00057200,,Adjudication & Enforcement Ser,Parking Off-Street,E10HA000044230,
http://statistics.data.gov.uk/id/local-authority/29UP,Tonbridge & Malling Borough Council,1/11/2023,0031019170/1,31019170, 640.00,SWS Countryside & Landscape,01567200,,Maintenance of Grounds,Leybourne Lakes Country Park,B22LK000020402,310042922
http://statistics.data.gov.uk/id/local-authority/29UP,Tonbridge & Malling Borough Council,1/11/2023,0031019171/1,31019171, 450.00,Wellden Land Surveys,01410600,,Professional Fees,Boro Drainage & Land Drainage,E20MA000044001,310042817
http://statistics.data.gov.uk/id/local-authority/29UP,Tonbridge & Malling Borough Council,1/11/2023,0032009999/1,32009999, 3400.00,Robinson Escott Planning LLP,01653000,,Application & Appeals,Development Management,A01AB000044194,320003327
http://statistics.data.gov.uk/id/local-authority/29UP,Tonbridge & Malling Borough Council,1/11/2023,0032010000/3,32010000, 5785.50,Vivid Resourcing,01773700,,Temporary Staff,Planning Sals&Overheads,D01AJDJ0111300,
http://statistics.data.gov.uk/id/local-authority/29UP,Tonbridge & Malling Borough Council,1/11/2023,0032010001/3,32010001, 851.40,The Oyster Partnership,01196400,,Temporary Staff,Planning Sals&Overheads,D01AJDJ0111300,
http://statistics.data.gov.uk/id/local-authority/29UP,Tonbridge & Malling Borough Council,1/11/2023,0032010002/3,32010002, 533.60,The Oyster Partnership,01196400,,Temporary Staff,Planning Sals&Overheads,D01AJDJ0111300,
http://statistics.data.gov.uk/id/local-authority/29UP,Tonbridge & Malling Borough Council,1/11/2023,0032010003/3,32010003, 951.75,The Oyster Partnership,01196400,,Temporary Staff,Planning Sals&Overheads,D01AJDJ0111300,
http://statistics.data.gov.uk/id/local-authority/29UP,Tonbridge & Malling Borough Council,1/11/2023,0032010004/3,32010004, 1725.00,The Oyster Partnership,01196400,,Temporary Staff,Planning Sals&Overheads,D01AJDJ0111300,
http://statistics.data.gov.uk/id/local-authority/29UP,Tonbridge & Malling Borough Council,1/11/2023,0032010005/1,32010005, 203.49,KM Media Group Ltd,00053900,,Advertising General,Development Management,A01ABZ99944216,320003472
http://statistics.data.gov.uk/id/local-authority/29UP,Tonbridge & Malling Borough Council,1/11/2023,0032010006/3,32010006, 1935.75,G2 Recruitment Solutions,01786000,,Temporary Staff,Planning Sals&Overheads,D01AJDJ0111300,
http://statistics.data.gov.uk/id/local-authority/29UP,Tonbridge & Malling Borough Council,1/11/2023,0032010007/3,32010007, 3640.00,G2 Recruitment Solutions,01786000,,Temporary Staff,Planning Sals&Overheads,D01AJDJ0111300,
http://statistics.data.gov.uk/id/local-authority/29UP,Tonbridge & Malling Borough Council,1/11/2023,0032010009/1,32010009, 3312.00,Arc4,01652100,,Development of Local Plan,Development of Local Plan,A01AE000044023,320003443
http://statistics.data.gov.uk/id/local-authority/29UP,Tonbridge & Malling Borough Council,1/11/2023,0032010010/1,32010010, 14892.50,Aylesford Parish Council,00007300,,Payments,S106 - Commuted Sums,M04AD000001001,
http://statistics.data.gov.uk/id/local-authority/29UP,Tonbridge & Malling Borough Council,1/11/2023,0032010011/1,32010011, 165.00,Seymour & Saunders Electrical Ltd,01500300,467735604,Competent Persons Schemes,Building Control,A01AD000048116,
http://statistics.data.gov.uk/id/local-authority/29UP,Tonbridge & Malling Borough Council,1/11/2023,0032010012/1,32010012, 1250.00,Tunbridge Wells Borough Council,00844600,,Temporary Staff,Planning Sals&Overheads,D01AJDJ0111300,
http://statistics.data.gov.uk/id/local-authority/29UP,Tonbridge & Malling Borough Council,1/11/2023,0032010013/1,32010013, 192.78,KM Media Group Ltd,00053900,,Advertising General,Development Management,A01ABZ99944216,320003457
http://statistics.data.gov.uk/id/local-authority/29UP,Tonbridge & Malling Borough Council,1/11/2023,0041035067/1,41035067, 20.00,Computershare Voucher Services,01212600,,Childcare Scheme,Finance Sals&Overheads,D01AFDF0911136,
http://statistics.data.gov.uk/id/local-authority/29UP,Tonbridge & Malling Borough Council,1/11/2023,0041035067/2,41035067, 1.40,Computershare Voucher Services,01212600,,National Insurance,Finance Sals&Overheads,D01AFDF0911191,
http://statistics.data.gov.uk/id/local-authority/29UP,Tonbridge & Malling Borough Council,1/11/2023,0041035067/3,41035067, 20.00,Computershare Voucher Services,01212600,,Childcare Scheme,Env Hlth & Hsg Sals&Overheads,D01AVDV0211136,
http://statistics.data.gov.uk/id/local-authority/29UP,Tonbridge & Malling Borough Council,1/11/2023,0041035067/4,41035067, 1.40,Computershare Voucher Services,01212600,,National Insurance,Env Hlth & Hsg Sals&Overheads,D01AVDV0211191,
http://statistics.data.gov.uk/id/local-authority/29UP,Tonbridge & Malling Borough Council,1/11/2023,0041035067/5,41035067, 243.00,Computershare Voucher Services,01212600,,Childcare Scheme,Env Hlth & Hsg Sals&Overheads,D01AVDV0711136,
http://statistics.data.gov.uk/id/local-authority/29UP,Tonbridge & Malling Borough Council,1/11/2023,0041035067/6,41035067, 17.01,Computershare Voucher Services,01212600,,National Insurance,Env Hlth & Hsg Sals&Overheads,D01AVDV0911191,
http://statistics.data.gov.uk/id/local-authority/29UP,Tonbridge & Malling Borough Council,1/11/2023,0041035068/1,41035068, 556.60,Morgan Hunt UK Ltd,01086900,,Temporary Staff,Finance Sals&Overheads,D01AFDF1111300,
http://statistics.data.gov.uk/id/local-authority/29UP,Tonbridge & Malling Borough Council,1/11/2023,0041035071/3,41035071, 417.29,Rundle & Co Ltd,00087200,,Bailiffs Commission,Local Revenue & NNDR Collect,D41QA000044075,
http://statistics.data.gov.uk/id/local-authority/29UP,Tonbridge & Malling Borough Council,1/11/2023,0041035072/3,41035072, 16.61,Rundle & Co Ltd,00087200,,Bailiffs Commission,Local Revenue & NNDR Collect,D41QA000044075,
http://statistics.data.gov.uk/id/local-authority/29UP,Tonbridge & Malling Borough Council,1/11/2023,0041035073/3,41035073, 725.74,Rundle & Co Ltd,00087200,,Bailiffs Commission,Local Revenue & NNDR Collect,D41QA000044075,
http://statistics.data.gov.uk/id/local-authority/29UP,Tonbridge & Malling Borough Council,1/11/2023,0041035074/3,41035074, 16.61,Rundle & Co Ltd,00087200,,Bailiffs Commission,Local Revenue & NNDR Collect,D41QA000044075,
http://statistics.data.gov.uk/id/local-authority/29UP,Tonbridge & Malling Borough Council,1/11/2023,0041035078/1,41035078, 2518.00,Greenhalgh Kerr,01590200,,Bailiffs Commission,Local Revenue & NNDR Collect,D41QA000044075,
http://statistics.data.gov.uk/id/local-authority/29UP,Tonbridge & Malling Borough Council,1/11/2023,0051008766/1,51008766, 32.00,Maidstone & Tun Wells NHS Trust,00067100,,Occuptional Health Medicals,Health Care,D10DBDV0913311,
http://statistics.data.gov.uk/id/local-authority/29UP,Tonbridge & Malling Borough Council,1/11/2023,0051008767/1,51008767, 950.00,C I E H.,00181500,,Recruitment Advertising,Recruitment Expenses,D10DADV0713110,510010608
http://statistics.data.gov.uk/id/local-authority/29UP,Tonbridge & Malling Borough Council,1/17/2023,0041035114/1,41035114, 59.95,Allpay Limited,01816500,,Giro / Swipe Card Charges,Local Revenue & NNDR Collect,D41QA000044083,
http://statistics.data.gov.uk/id/local-authority/29UP,Tonbridge & Malling Borough Council,1/18/2023,0011045368/1,11045368, 730.00,BML Building Services Ltd,01505000,,BRREP General Maintenance,PC - General,M15JAP10001900,
http://statistics.data.gov.uk/id/local-authority/29UP,Tonbridge & Malling Borough Council,1/18/2023,0011045434/1,11045434, 3072.10,Coolburn Air Conditioning Ltd,01137900,,BRREP Servicing - air handling,Tonbridge Swimming Pool,M15HBP20001936,110069704
http://statistics.data.gov.uk/id/local-authority/29UP,Tonbridge & Malling Borough Council,1/18/2023,0011045435/3,11045435, 24.15,Oasis Group  - Box-It South East,00966800,931579211,Purchases,Electoral Registration,D31MF000040101,
http://statistics.data.gov.uk/id/local-authority/29UP,Tonbridge & Malling Borough Council,1/18/2023,0011045436/3,11045436, 4.92,Royal Mail,00086200,,Postages - Business Reply,Electoral Registration,D31MF000045003,
http://statistics.data.gov.uk/id/local-authority/29UP,Tonbridge & Malling Borough Council,1/18/2023,0011045437/3,11045437, 491.47,KH Recruitment Ltd,01738900,,Salaries & On Costs,Licences - Fee Paying,H27SH000015100,
http://statistics.data.gov.uk/id/local-authority/29UP,Tonbridge & Malling Borough Council,1/18/2023,0011045438/1,11045438, 722.00,Disclosure & Barring Service,00865900,,Professional Fees,Licences - Fee Paying,H27SH000044001,
http://statistics.data.gov.uk/id/local-authority/29UP,Tonbridge & Malling Borough Council,1/18/2023,0011045439/3,11045439, 1250.00,Francis Taylor Building,01688700,,Legal Fees,Legal Sals&Overheads,D01ARDR0044002,
http://statistics.data.gov.uk/id/local-authority/29UP,Tonbridge & Malling Borough Council,1/18/2023,0011045440/3,11045440, 1481.43,Kent County Council,00322500,,Kent Highways,Local Land Charges,D35NK000044240,
http://statistics.data.gov.uk/id/local-authority/29UP,Tonbridge & Malling Borough Council,1/18/2023,0011045441/3,11045441, 1455.00,Thomson Snell & Passmore,00101700,,Legal Fees,Legal Sals&Overheads,D01ARDR0044002,
http://statistics.data.gov.uk/id/local-authority/29UP,Tonbridge & Malling Borough Council,1/18/2023,0011045442/3,11045442, 279.51,BML Building Services Ltd,01505000,,Repairs & Mtce to Buildings,Homelessness,C01AATNHS20101,
http://statistics.data.gov.uk/id/local-authority/29UP,Tonbridge & Malling Borough Council,1/18/2023,0011045443/3,11045443, 106.20,BML Building Services Ltd,01505000,,BRREP Response - General,Pleasure Grounds & Open Spaces,M15HHP50001997,
http://statistics.data.gov.uk/id/local-authority/29UP,Tonbridge & Malling Borough Council,1/18/2023,0011045444/3,11045444, 360.00,G C Industrial Heating Services,00578100,,BRREP Servicing - Sadia Tea,Gibson Building East,M15KGP20001932,
http://statistics.data.gov.uk/id/local-authority/29UP,Tonbridge & Malling Borough Council,1/18/2023,0011045446/3,11045446, 1268.00,Thomson Snell & Passmore,00101700,,Legal Fees,Legal Sals&Overheads,D01ARDR0044002,
http://statistics.data.gov.uk/id/local-authority/29UP,Tonbridge & Malling Borough Council,1/18/2023,0011045447/3,11045447, 12.91,Royal Mail,00086200,,Purchases,Mailsort Stock Account,K37BR000001002,
http://statistics.data.gov.uk/id/local-authority/29UP,Tonbridge & Malling Borough Council,1/18/2023,0011045447/4,11045447, 4.20,Royal Mail,00086200,,Purchases,Mailsort Stock Account,K37BR000001002,
http://statistics.data.gov.uk/id/local-authority/29UP,Tonbridge & Malling Borough Council,1/18/2023,0011045447/5,11045447, 2459.28,Royal Mail,00086200,,Purchases,Mailsort Stock Account,K37BR000001002,
http://statistics.data.gov.uk/id/local-authority/29UP,Tonbridge & Malling Borough Council,1/18/2023,0011045448/3,11045448, 14.50,Royal Mail,00086200,,Purchases,Business Reply Stock Account,K14AT000001002,
http://statistics.data.gov.uk/id/local-authority/29UP,Tonbridge & Malling Borough Council,1/18/2023,0011045448/4,11045448, 39.44,Royal Mail,00086200,,Purchases,Business Reply Stock Account,K14AT000001002,
http://statistics.data.gov.uk/id/local-authority/29UP,Tonbridge & Malling Borough Council,1/18/2023,0011045449/3,11045449, 2812.50,HazleMcCormack Young LLP,01793100,,Professional Fees,Land Review,D40PSTON144001,
http://statistics.data.gov.uk/id/local-authority/29UP,Tonbridge & Malling Borough Council,1/18/2023,0011045450/3,11045450, 140.00,G C Industrial Heating Services,00578100,,BRREP Servicing - Heating Syst,Larkfield Leisure Centre,M15HDP20001934,
http://statistics.data.gov.uk/id/local-authority/29UP,Tonbridge & Malling Borough Council,1/18/2023,0011045451/3,11045451, 98.00,SJC Door Security Installations,01278600,,BRREP Servicing - access syst,Gibson Building West,M15KBP20001940,
http://statistics.data.gov.uk/id/local-authority/29UP,Tonbridge & Malling Borough Council,1/18/2023,0011045452/3,11045452, 231.00,Thomson Snell & Passmore,00101700,,Legal Fees,Legal Sals&Overheads,D01ARDR0044002,
http://statistics.data.gov.uk/id/local-authority/29UP,Tonbridge & Malling Borough Council,1/18/2023,0011045454/3,11045454, 726.84,The Oyster Partnership,01196400,,Temporary Staff,Admin & Prop Sals&Overheads,D01AADA1111300,
http://statistics.data.gov.uk/id/local-authority/29UP,Tonbridge & Malling Borough Council,1/18/2023,0011045455/3,11045455, 43.14,Atlas Facilities Managment Limited ,01075900,,Miscellaneous Services,Cleaning & Security,D21FDDD1044015,
http://statistics.data.gov.uk/id/local-authority/29UP,Tonbridge & Malling Borough Council,1/18/2023,0011045456/3,11045456, 16.82,Castle Water,01696500,,Estate Management Charge,Land Review,D40PS000020400,
http://statistics.data.gov.uk/id/local-authority/29UP,Tonbridge & Malling Borough Council,1/18/2023,0011045457/3,11045457, 2429.99,Royal Mail,00086200,,Purchases,Mailsort Stock Account,K37BR000001002,
http://statistics.data.gov.uk/id/local-authority/29UP,Tonbridge & Malling Borough Council,1/18/2023,0011045457/4,11045457, 8.40,Royal Mail,00086200,,Purchases,Mailsort Stock Account,K37BR000001002,
http://statistics.data.gov.uk/id/local-authority/29UP,Tonbridge & Malling Borough Council,1/18/2023,0011045457/5,11045457, 10.67,Royal Mail,00086200,,Purchases,Mailsort Stock Account,K37BR000001002,
http://statistics.data.gov.uk/id/local-authority/29UP,Tonbridge & Malling Borough Council,1/18/2023,0011045458/3,11045458, 306.30,Canon (UK) Limited,00298700,,Purchases - Paper,Printing,D22GA000040102,
http://statistics.data.gov.uk/id/local-authority/29UP,Tonbridge & Malling Borough Council,1/18/2023,0011045460/1,11045460, 70.00,Sevenoaks Mayor's Charity Account,01273000,,Hospitality,Mayoral & Other Member Support,D29LX000048003,
http://statistics.data.gov.uk/id/local-authority/29UP,Tonbridge & Malling Borough Council,1/18/2023,0011045461/1,11045461, 47.40,Bulb Energy Ltd,01799000,214948301,Estate Management Charge,Land Review,D40PS000020400,
http://statistics.data.gov.uk/id/local-authority/29UP,Tonbridge & Malling Borough Council,1/18/2023,0011045463/1,11045463, 4950.00,Concrete & Corrosion Consultancy Practic,01558900,,BRREP General Maintenance,Larkfield Leisure Centre,M15HDP10001900,110069894
http://statistics.data.gov.uk/id/local-authority/29UP,Tonbridge & Malling Borough Council,1/18/2023,0011045465/1,11045465, 2992.80,Chillmech Limited,00978700,,BRREP Servicing-Air Condition,Angel Centre,M15HAP20001935,110069962
http://statistics.data.gov.uk/id/local-authority/29UP,Tonbridge & Malling Borough Council,1/18/2023,0011045466/1,11045466, 188.00,Chillmech Limited,00978700,,BRREP Servicing-Air Condition,Angel Centre,M15HAP20001935,110069940
http://statistics.data.gov.uk/id/local-authority/29UP,Tonbridge & Malling Borough Council,1/18/2023,0011045467/1,11045467, 8688.00,BML Building Services Ltd,01505000,,BRREP General Maintenance,Larkfield Leisure Centre,M15HDP10001900,110069969
http://statistics.data.gov.uk/id/local-authority/29UP,Tonbridge & Malling Borough Council,1/18/2023,0011045468/1,11045468, 558.63,Glaze-Tech Services Ltd,00779500,,BRREP Response - General,Shops & Maisonettes,M15NAP50001997,110069906
http://statistics.data.gov.uk/id/local-authority/29UP,Tonbridge & Malling Borough Council,1/18/2023,0011045470/1,11045470, 341.00,Loxton Installations Ltd,01278800,,BRREP IEE Testing,Larkfield Leisure Centre,M15HDP30001991,110069941
http://statistics.data.gov.uk/id/local-authority/29UP,Tonbridge & Malling Borough Council,1/18/2023,0011045471/1,11045471, 75.00,Automated Limited,00007000,,BRREP Plant renewals,Tonbridge Swimming Pool,M15HBP20001909,110069770
http://statistics.data.gov.uk/id/local-authority/29UP,Tonbridge & Malling Borough Council,1/18/2023,0011045475/1,11045475, 160.00,Automated Limited,00007000,,BRREP Serv Internal Lighting,Angel Centre,M15HAP20001957,110069753
http://statistics.data.gov.uk/id/local-authority/29UP,Tonbridge & Malling Borough Council,1/18/2023,0011045476/1,11045476, 227.00,Automated Limited,00007000,,BRREP Serv Internal Lighting,Leis Man Poult Wood Golf Centr,M15HEP20001957,110069749
http://statistics.data.gov.uk/id/local-authority/29UP,Tonbridge & Malling Borough Council,1/18/2023,0011045477/1,11045477, 240.00,G C Industrial Heating Services,00578100,,BRREP Servicing - Heating Syst,Leis Man Poult Wood Golf Centr,M15HEP20001934,110069957
http://statistics.data.gov.uk/id/local-authority/29UP,Tonbridge & Malling Borough Council,1/18/2023,0011045478/1,11045478, 570.00,G C Industrial Heating Services,00578100,,BRREP Servicing - boilers,Gibson Building East,M15KGP20001929,110069944
http://statistics.data.gov.uk/id/local-authority/29UP,Tonbridge & Malling Borough Council,1/18/2023,0011045479/1,11045479, 2016.00,K T Fire Protection Ltd,00057000,,BRREP Emergency light discharg,Larkfield Leisure Centre,M15HDP30001980,110069746
http://statistics.data.gov.uk/id/local-authority/29UP,Tonbridge & Malling Borough Council,1/18/2023,0011045480/3,11045480, 1502.50,Thomson Snell & Passmore,00101700,,Legal Fees,Legal Sals&Overheads,D01ARDR0044002,
http://statistics.data.gov.uk/id/local-authority/29UP,Tonbridge & Malling Borough Council,1/18/2023,0011045481/3,11045481, 139.00,Thomson Snell & Passmore,00101700,,Legal Fees,Legal Sals&Overheads,D01ARDR0044002,
http://statistics.data.gov.uk/id/local-authority/29UP,Tonbridge & Malling Borough Council,1/18/2023,0011045482/1,11045482, 859.00,K T Fire Protection Ltd,00057000,,BRREP Emergency light discharg,Leis Man Poult Wood Golf Centr,M15HEP30001980,110069747
http://statistics.data.gov.uk/id/local-authority/29UP,Tonbridge & Malling Borough Council,1/18/2023,0011045483/1,11045483, 601.50,K T Fire Protection Ltd,00057000,,BRREP Emergency light discharg,Tonbridge Castle / CAB,M15KFP30001980,110069745
http://statistics.data.gov.uk/id/local-authority/29UP,Tonbridge & Malling Borough Council,1/18/2023,0011045484/1,11045484, 317.00,K T Fire Protection Ltd,00057000,,BRREP Emergency light discharg,Tonbridge Castle Gatehouse,M15HKP30001980,110069744
http://statistics.data.gov.uk/id/local-authority/29UP,Tonbridge & Malling Borough Council,1/18/2023,0011045485/1,11045485, 1902.00,K T Fire Protection Ltd,00057000,,BRREP Emergency light discharg,Gibson Building East,M15KGP30001980,110069743
http://statistics.data.gov.uk/id/local-authority/29UP,Tonbridge & Malling Borough Council,1/18/2023,0011045486/1,11045486, 1683.00,K T Fire Protection Ltd,00057000,,BRREP Emergency light discharg,Gibson Building West,M15KBP30001980,110069742
http://statistics.data.gov.uk/id/local-authority/29UP,Tonbridge & Malling Borough Council,1/18/2023,0011045487/1,11045487, 2261.00,K T Fire Protection Ltd,00057000,,BRREP Emergency light discharg,Angel Centre,M15HAP30001980,110069741
http://statistics.data.gov.uk/id/local-authority/29UP,Tonbridge & Malling Borough Council,1/18/2023,0011045488/1,11045488, 644.00,K T Fire Protection Ltd,00057000,,BRREP Emergency light discharg,Leis Man Poult Wood Golf Centr,M15HEP30001980,110069748
http://statistics.data.gov.uk/id/local-authority/29UP,Tonbridge & Malling Borough Council,1/18/2023,0011045489/1,11045489, 2200.00,JB Carpentry - J Baker,01878900,,BRREP General Maintenance,Larkfield Leisure Centre,M15HDP10001900,110069978
http://statistics.data.gov.uk/id/local-authority/29UP,Tonbridge & Malling Borough Council,1/18/2023,0011045490/1,11045490, 872.08,Vertiv Infrastructure Limited,00158300,,Maintenance - Ancillary Equip,Information Technology,D27KD000040137,110069837
http://statistics.data.gov.uk/id/local-authority/29UP,Tonbridge & Malling Borough Council,1/18/2023,0011045491/1,11045491, 550.00,SWS Countryside & Landscape,01567200,,BRREP Car Park mntce,Larkfield Leisure Centre,M15HDP20001953,110069845
http://statistics.data.gov.uk/id/local-authority/29UP,Tonbridge & Malling Borough Council,1/18/2023,0011045492/1,11045492, 242.50,H20 Servicing Limited,00888800,808041553,BRREP Plant renewals,Tonbridge Swimming Pool,M15HBP20001909,110069981
http://statistics.data.gov.uk/id/local-authority/29UP,Tonbridge & Malling Borough Council,1/18/2023,0011045493/1,11045493, 68.00,K T Fire Protection Ltd,00057000,,BRREP Servicing - FireAlarmSys,Tonbridge Castle / CAB,M15KFP20001937,110069666
http://statistics.data.gov.uk/id/local-authority/29UP,Tonbridge & Malling Borough Council,1/18/2023,0011045494/1,11045494, 68.00,K T Fire Protection Ltd,00057000,,BRREP Servicing - FireAlarmSys,Tonbridge Castle Gatehouse,M15HKP20001937,110069661
http://statistics.data.gov.uk/id/local-authority/29UP,Tonbridge & Malling Borough Council,1/18/2023,0011045495/1,11045495, 185.00,K T Fire Protection Ltd,00057000,,BRREP Servicing - FireAlarmSys,Larkfield Leisure Centre,M15HDP20001937,110069672
http://statistics.data.gov.uk/id/local-authority/29UP,Tonbridge & Malling Borough Council,1/18/2023,0011045496/1,11045496, 2170.40,TwoFold Limited,00518000,,Maintenance - General,Printing,D22GA000040135,110069986
http://statistics.data.gov.uk/id/local-authority/29UP,Tonbridge & Malling Borough Council,1/18/2023,0011045497/1,11045497, 325.00,Laddingford Engineering Ltd,00782700,,BRREP Flood gate tests,Tonbridge Swimming Pool,M15HBP30001996,110069849
http://statistics.data.gov.uk/id/local-authority/29UP,Tonbridge & Malling Borough Council,1/18/2023,0011045498/1,11045498, 1225.00,Automated Limited,00007000,,BRREP Emergency light discharg,Tonbridge Swimming Pool,M15HBP30001980,110069764
http://statistics.data.gov.uk/id/local-authority/29UP,Tonbridge & Malling Borough Council,1/18/2023,0011045501/1,11045501, 840.65,Chubb Fire & Security Ltd,00115400,174605362,BRREP Servicing-IntruderAlarm,Grnd Mtce Poult Wood Golf Cent,M15HFP20001939,110069995
http://statistics.data.gov.uk/id/local-authority/29UP,Tonbridge & Malling Borough Council,1/18/2023,0011045502/1,11045502, 1075.63,Chubb Fire & Security Ltd,00115400,174605362,BRREP Servicing-IntruderAlarm,Leis Man Poult Wood Golf Centr,M15HEP20001939,110069996
http://statistics.data.gov.uk/id/local-authority/29UP,Tonbridge & Malling Borough Council,1/18/2023,0011045503/1,11045503, 865.03,Chubb Fire & Security Ltd,00115400,174605362,BRREP Servicing-IntruderAlarm,Leis Man Poult Wood Golf Centr,M15HEP20001939,110069997
http://statistics.data.gov.uk/id/local-authority/29UP,Tonbridge & Malling Borough Council,1/18/2023,0011045505/1,11045505, 160.00,Automated Limited,00007000,,BRREP Serv Internal Lighting,Angel Centre,M15HAP20001957,110069771
http://statistics.data.gov.uk/id/local-authority/29UP,Tonbridge & Malling Borough Council,1/18/2023,0011045506/1,11045506, 421.70,Glaze-Tech Services Ltd,00779500,,BRREP Window/door repairs,Larkfield Leisure Centre,M15HDP20001919,110069899
http://statistics.data.gov.uk/id/local-authority/29UP,Tonbridge & Malling Borough Council,1/18/2023,0011045507/1,11045507, 1022.35,Automated Limited,00007000,,BRREP Serv Internal Lighting,Angel Centre,M15HAP20001957,110069833
http://statistics.data.gov.uk/id/local-authority/29UP,Tonbridge & Malling Borough Council,1/18/2023,0011045508/1,11045508, 2580.15,Chubb Fire & Security Ltd,00115400,174605362,BRREP Servicing-IntruderAlarm,Angel Centre,M15HAP20001939,110069998
http://statistics.data.gov.uk/id/local-authority/29UP,Tonbridge & Malling Borough Council,1/18/2023,0011045509/1,11045509, 630.00,BML Building Services Ltd,01505000,,BRREP General Maintenance,PC - General,M15JAP10001900,110069860
http://statistics.data.gov.uk/id/local-authority/29UP,Tonbridge & Malling Borough Council,1/18/2023,0012008604/1,12008604, 15.96,CCS Media Ltd,00018000,,Purchases,Information Technology,D27KD000040101,410032312
http://statistics.data.gov.uk/id/local-authority/29UP,Tonbridge & Malling Borough Council,1/18/2023,0012008604/2,12008604, 9.00,CCS Media Ltd,00018000,,Delivery Expenses,Information Technology,D27KD000044069,410032312
http://statistics.data.gov.uk/id/local-authority/29UP,Tonbridge & Malling Borough Council,1/18/2023,0012008605/1,12008605, 2740.00,Perfect Colours,01672500,,Maintenance - Ancillary Equip,Information Technology,D27KD000040137,410032319
http://statistics.data.gov.uk/id/local-authority/29UP,Tonbridge & Malling Borough Council,1/18/2023,0012008606/3,12008606, 17901.95,Phoenix Software Ltd,00077400,755349015,Software Hire & Support,Information Technology,D27KD000044059,
http://statistics.data.gov.uk/id/local-authority/29UP,Tonbridge & Malling Borough Council,1/18/2023,0012008607/1,12008607, 6985.00,CTL Audiovisual Services Ltd,01652000,,Maintenance - Ancillary Equip,Information Technology,D27KD000040137,410032323
http://statistics.data.gov.uk/id/local-authority/29UP,Tonbridge & Malling Borough Council,1/18/2023,0012008608/1,12008608, 138.85,CCS Media Ltd,00018000,,BRREP General Maintenance,Gibson Building East,M15KGP10001900,410032201
http://statistics.data.gov.uk/id/local-authority/29UP,Tonbridge & Malling Borough Council,1/18/2023,0021038343/1,21038343, 55.00,SWS Countryside & Landscape,01567200,,Maintenance of Grounds,Haysden Country Park,B22LC000020402,210057076
http://statistics.data.gov.uk/id/local-authority/29UP,Tonbridge & Malling Borough Council,1/18/2023,0021038344/1,21038344, 72.25,SWS Countryside & Landscape,01567200,,Maintenance of Grounds,Haysden Country Park,B22LC000020402,210057009
http://statistics.data.gov.uk/id/local-authority/29UP,Tonbridge & Malling Borough Council,1/18/2023,0021038344/2,21038344, 72.25,SWS Countryside & Landscape,01567200,,Maintenance of Grounds,Haysden Country Park,B22LC000020402,210057009
http://statistics.data.gov.uk/id/local-authority/29UP,Tonbridge & Malling Borough Council,1/18/2023,0021038345/1,21038345, 250.00,SWS Countryside & Landscape,01567200,,Health & Safety - Trees,Countryside/Woodland Mgt,B22LG000044045,210057014
http://statistics.data.gov.uk/id/local-authority/29UP,Tonbridge & Malling Borough Council,1/18/2023,0021038346/1,21038346, 120.00,SWS Countryside & Landscape,01567200,,BRREP Hard paving surface rep,Shops & Maisonettes,M15NAP20001946,210056959
http://statistics.data.gov.uk/id/local-authority/29UP,Tonbridge & Malling Borough Council,1/18/2023,0021038347/1,21038347, 500.00,SWS Countryside & Landscape,01567200,,Health & Safety - Trees,Countryside/Woodland Mgt,B22LG000044045,210057015
http://statistics.data.gov.uk/id/local-authority/29UP,Tonbridge & Malling Borough Council,1/18/2023,0021038348/1,21038348, 2570.00,SWS Countryside & Landscape,01567200,,Health & Safety - Trees,Countryside/Woodland Mgt,B22LG000044045,210056950
http://statistics.data.gov.uk/id/local-authority/29UP,Tonbridge & Malling Borough Council,1/18/2023,0021038349/3,21038349, 620.00,SWS Countryside & Landscape,01567200,,Health & Safety - Trees,Countryside/Woodland Mgt,B22LG000044045,
http://statistics.data.gov.uk/id/local-authority/29UP,Tonbridge & Malling Borough Council,1/18/2023,0021038350/3,21038350, 375.00,SWS Countryside & Landscape,01567200,,Health & Safety - Trees,Countryside/Woodland Mgt,B22LG000044045,
http://statistics.data.gov.uk/id/local-authority/29UP,Tonbridge & Malling Borough Council,1/18/2023,0021038351/1,21038351, 80.00,SWS Countryside & Landscape,01567200,,Health & Safety - Trees,Countryside/Woodland Mgt,B22LG000044045,210057017
http://statistics.data.gov.uk/id/local-authority/29UP,Tonbridge & Malling Borough Council,1/18/2023,0021038351/2,21038351, 250.00,SWS Countryside & Landscape,01567200,,Health & Safety - Trees,Countryside/Woodland Mgt,B22LG000044045,210057017
http://statistics.data.gov.uk/id/local-authority/29UP,Tonbridge & Malling Borough Council,1/18/2023,0021038352/1,21038352, 550.00,SWS Countryside & Landscape,01567200,,Health & Safety - Trees,Countryside/Woodland Mgt,B22LG000044045,210057008
http://statistics.data.gov.uk/id/local-authority/29UP,Tonbridge & Malling Borough Council,1/18/2023,0021038353/1,21038353, 2050.00,SWS Countryside & Landscape,01567200,,Maintenance of Grounds,Countryside/Woodland Mgt,B22LG000020402,210056995
http://statistics.data.gov.uk/id/local-authority/29UP,Tonbridge & Malling Borough Council,1/18/2023,0021038354/1,21038354, 6600.00,SWS Countryside & Landscape,01567200,,Health & Safety - Trees,Countryside/Woodland Mgt,B22LG000044045,210056978
http://statistics.data.gov.uk/id/local-authority/29UP,Tonbridge & Malling Borough Council,1/18/2023,0021038355/1,21038355, 80.00,SWS Countryside & Landscape,01567200,,Health & Safety - Trees,Countryside/Woodland Mgt,B22LG000044045,210056940
http://statistics.data.gov.uk/id/local-authority/29UP,Tonbridge & Malling Borough Council,1/18/2023,0021038355/2,21038355, 350.00,SWS Countryside & Landscape,01567200,,Health & Safety - Trees,Countryside/Woodland Mgt,B22LG000044045,210056940
http://statistics.data.gov.uk/id/local-authority/29UP,Tonbridge & Malling Borough Council,1/18/2023,0021038355/3,21038355, 900.00,SWS Countryside & Landscape,01567200,,Health & Safety - Trees,Countryside/Woodland Mgt,B22LG000044045,210056940
http://statistics.data.gov.uk/id/local-authority/29UP,Tonbridge & Malling Borough Council,1/18/2023,0021038356/1,21038356, 1110.00,Green Leaf Tree & Landscapes Limited,01860500,,Health & Safety - Trees,Countryside/Woodland Mgt,B22LG000044045,210057048
http://statistics.data.gov.uk/id/local-authority/29UP,Tonbridge & Malling Borough Council,1/18/2023,0021038357/3,21038357, 26.28,B&Q/Screwfix Direct(TradeUKAccount),00141300,,Purchases,Open Spaces & Amenity Areas,B22LE000040101,
http://statistics.data.gov.uk/id/local-authority/29UP,Tonbridge & Malling Borough Council,1/18/2023,0021038359/3,21038359, 245.00,Countrystyle Group,00835900,781981681,Collection of Card,Dry Recycling,H34SR000054008,
http://statistics.data.gov.uk/id/local-authority/29UP,Tonbridge & Malling Borough Council,1/18/2023,0021038360/1,21038360, 300.00,Green Leaf Tree & Landscapes Limited,01860500,,Health & Safety - Trees,Countryside/Woodland Mgt,B22LG000044045,210057097
http://statistics.data.gov.uk/id/local-authority/29UP,Tonbridge & Malling Borough Council,1/18/2023,0021038361/1,21038361, 716.24,Streetmaster (South Wales) Ltd,00222100,,Maintenance of Grounds,Sports Grounds,B13ET000020402,210056907
http://statistics.data.gov.uk/id/local-authority/29UP,Tonbridge & Malling Borough Council,1/18/2023,0021038362/1,21038362, 700.70,Streetmaster (South Wales) Ltd,00222100,,Maintenance of Grounds,Sports Grounds,B13ET000020402,210056908
http://statistics.data.gov.uk/id/local-authority/29UP,Tonbridge & Malling Borough Council,1/18/2023,0021038363/3,21038363, 600.00,Monitor Pest Control Ltd,01476700,,Rodent Control,Haysden Country Park,B22LC000044053,
http://statistics.data.gov.uk/id/local-authority/29UP,Tonbridge & Malling Borough Council,1/18/2023,0021038364/1,21038364, 3245.19,Landscape Services Ltd,00057600,,Grounds Maintenance Contract,Open Spaces & Amenity Areas,B22LE000050103,210056754
http://statistics.data.gov.uk/id/local-authority/29UP,Tonbridge & Malling Borough Council,1/18/2023,0021038364/2,21038364, 146.95,Landscape Services Ltd,00057600,,Grounds Maintenance Contract,Open Spaces & Amenity Areas,B22LE000050103,210056754
http://statistics.data.gov.uk/id/local-authority/29UP,Tonbridge & Malling Borough Council,1/18/2023,0021038364/3,21038364, 296.69,Landscape Services Ltd,00057600,,Grounds Maintenance Contract,Open Spaces & Amenity Areas,B22LE000050103,210056754
http://statistics.data.gov.uk/id/local-authority/29UP,Tonbridge & Malling Borough Council,1/18/2023,0021038365/1,21038365, 4870.00,GI Carpets Ltd,00953500,,Initial Furniture & Equipment,Capital Renewals Leisure,P05KGBC0209906,210057057
http://statistics.data.gov.uk/id/local-authority/29UP,Tonbridge & Malling Borough Council,1/18/2023,0021038366/1,21038366, 2895.00,GI Carpets Ltd,00953500,,Initial Furniture & Equipment,Capital Renewals Leisure,P05KGBC0209906,210057058
http://statistics.data.gov.uk/id/local-authority/29UP,Tonbridge & Malling Borough Council,1/18/2023,0022027365/3,22027365, 2460.85,Tunbridge Wells Borough Council,00844600,,Other Expenses,Refuse Collection,H20SA000048010,
http://statistics.data.gov.uk/id/local-authority/29UP,Tonbridge & Malling Borough Council,1/18/2023,0022027366/1,22027366, 8.64,Scottish Water Business Stream Ltd,01641100,,Sewerage Charges,Public Conveniences,H22SCH00424003,
http://statistics.data.gov.uk/id/local-authority/29UP,Tonbridge & Malling Borough Council,1/18/2023,0022027367/3,22027367, 1191.30,Lucy and Martin Recycling LTD,01694200,,Vehicle Licences,Dry Recycling,H34SR000030105,
http://statistics.data.gov.uk/id/local-authority/29UP,Tonbridge & Malling Borough Council,1/18/2023,0022027368/1,22027368, 18138.00,Acorn Maintenance Services,01036000,,Other Expenses,Disabled Facilities Grant Mand,P03AC000009908,
http://statistics.data.gov.uk/id/local-authority/29UP,Tonbridge & Malling Borough Council,1/18/2023,0022027369/3,22027369, 780.00,On Site Wheelie Washers,01069700,,Other Expenses,Refuse Collection,H20SA000048010,
http://statistics.data.gov.uk/id/local-authority/29UP,Tonbridge & Malling Borough Council,1/18/2023,0022027370/1,22027370, 400.00,J S Duffield Building Contractors,01882700,,Other Expenses,Disabled Facilities Grant Mand,P03AC000009908,
http://statistics.data.gov.uk/id/local-authority/29UP,Tonbridge & Malling Borough Council,1/18/2023,0022027371/1,22027371, 1320.50,Town & Country Housing Group,01385400,,Countywide DFG Project,Private Sector Housing Renewal,C03BD000044031,
http://statistics.data.gov.uk/id/local-authority/29UP,Tonbridge & Malling Borough Council,1/18/2023,0022027372/1,22027372, 123.75,Sevenoaks District Council,00089300,,Healthy Living Initiatives,Public Health - Healthy Living,H40SYVH0048145,220003220
http://statistics.data.gov.uk/id/local-authority/29UP,Tonbridge & Malling Borough Council,1/18/2023,0022027373/3,22027373, 820.72,KCC - L.A.S.E.R Commercial Services ,00184300,,Air Quality Monitoring,Environmental Protection,H32SN000054016,
http://statistics.data.gov.uk/id/local-authority/29UP,Tonbridge & Malling Borough Council,1/18/2023,0022027374/3,22027374, 50.00,Monitor Pest Control Ltd,01476700,,Other Expenses,Pest Control,H24SE000048010,
http://statistics.data.gov.uk/id/local-authority/29UP,Tonbridge & Malling Borough Council,1/18/2023,0022027375/1,22027375, 25.95,Ark Trading/Goldstar,01607200,113179830,Purchases,Street Scene,H23SD000040101,220003258
http://statistics.data.gov.uk/id/local-authority/29UP,Tonbridge & Malling Borough Council,1/18/2023,0022027375/2,22027375, 43.10,Ark Trading/Goldstar,01607200,113179830,Purchases,Street Scene,H23SD000040101,220003258
http://statistics.data.gov.uk/id/local-authority/29UP,Tonbridge & Malling Borough Council,1/18/2023,0022027375/3,22027375, 20.00,Ark Trading/Goldstar,01607200,113179830,Purchases,Street Scene,H23SD000040101,220003258
http://statistics.data.gov.uk/id/local-authority/29UP,Tonbridge & Malling Borough Council,1/18/2023,0022027376/1,22027376, 3600.24,Town & Country Housing Group,01385400,,Other Expenses,Disabled Facilities Grant Mand,P03AC000009908,
http://statistics.data.gov.uk/id/local-authority/29UP,Tonbridge & Malling Borough Council,1/18/2023,0022027377/1,22027377, 2080.33,Town & Country Housing Group,01385400,,Other Expenses,Disabled Facilities Grant Mand,P03AC000009908,
http://statistics.data.gov.uk/id/local-authority/29UP,Tonbridge & Malling Borough Council,1/18/2023,0022027378/1,22027378, 9446.77,Elite Complete Build LTD,01625900,,Other Expenses,Disabled Facilities Grant Mand,P03AC000009908,
http://statistics.data.gov.uk/id/local-authority/29UP,Tonbridge & Malling Borough Council,1/18/2023,0022027379/1,22027379, 3755.76,Town & Country Housing Group,01385400,,Other Expenses,Disabled Facilities Grant Mand,P03AC000009908,
http://statistics.data.gov.uk/id/local-authority/29UP,Tonbridge & Malling Borough Council,1/18/2023,0022027380/1,22027380, 3.00,Tonbridge & Malling Borough Council,00103700,,Other Expenses,Housing Assistance,P03AD000009908,
http://statistics.data.gov.uk/id/local-authority/29UP,Tonbridge & Malling Borough Council,1/18/2023,0022027381/1,22027381, 240.00,Town & Country Housing Group,01385400,,Other Expenses,Housing Assistance,P03AD000009908,
http://statistics.data.gov.uk/id/local-authority/29UP,Tonbridge & Malling Borough Council,1/18/2023,0022027382/3,22027382, 36.01,Bulb Energy Ltd,01799000,214948301,Electricity,Homelessness,C01AA000021002,
http://statistics.data.gov.uk/id/local-authority/29UP,Tonbridge & Malling Borough Council,1/18/2023,0031019172/3,31019172, 1419.83,Tonbridge & Malling Leisure Trust,01469100,,Ticket Refunds - Lower Castle,Parking Off-Street,E10HAE01344199,
http://statistics.data.gov.uk/id/local-authority/29UP,Tonbridge & Malling Borough Council,1/18/2023,0031019180/3,31019180, 26632.89,Tunbridge Wells Borough Council,00844600,,CCTV Monitoring Station,Security Services Management,E09GA000051020,
http://statistics.data.gov.uk/id/local-authority/29UP,Tonbridge & Malling Borough Council,1/18/2023,0031019181/1,31019181, 3475.00,DSSL Group Ltd,01839500,,CCTV Monitoring Station,Security Services Management,E09GA000051020,310042803
http://statistics.data.gov.uk/id/local-authority/29UP,Tonbridge & Malling Borough Council,1/18/2023,0031019182/1,31019182, 4129.76,PSR Lighting & Signs Ltd,01265400,,Tonbridge Christmas Lighting,Eco Dev & Reg Ton Chris Light,D52TF000047015,210057001
http://statistics.data.gov.uk/id/local-authority/29UP,Tonbridge & Malling Borough Council,1/18/2023,0031019182/2,31019182, 138.22,PSR Lighting & Signs Ltd,01265400,,Tonbridge Christmas Lighting,Eco Dev & Reg Ton Chris Light,D52TF000047015,210057001
http://statistics.data.gov.uk/id/local-authority/29UP,Tonbridge & Malling Borough Council,1/18/2023,0031019183/1,31019183, 200.00,Arnold & Court Ltd,01411300,,Bridge Maintenance,Open Spaces & Amenity Areas,B22LE000020505,310042937
http://statistics.data.gov.uk/id/local-authority/29UP,Tonbridge & Malling Borough Council,1/18/2023,0031019183/2,31019183, 200.00,Arnold & Court Ltd,01411300,,Premises Repairs & Maintenance,Parking Off-Street,E10HA000020601,310042937
http://statistics.data.gov.uk/id/local-authority/29UP,Tonbridge & Malling Borough Council,1/18/2023,0031019184/1,31019184, 1600.00,Arnold & Court Ltd,01411300,,Winter Maintenance,Parking Off-Street,E10HA000020701,310042945
http://statistics.data.gov.uk/id/local-authority/29UP,Tonbridge & Malling Borough Council,1/18/2023,0031019184/2,31019184, 2912.00,Arnold & Court Ltd,01411300,,Maintenance - General,Parking Off-Street,E10HA000040135,310042945
http://statistics.data.gov.uk/id/local-authority/29UP,Tonbridge & Malling Borough Council,1/18/2023,0031019185/1,31019185, 400.00,Arnold & Court Ltd,01411300,,Contract Payments,Boro Drainage & Land Drainage,E20MA000054001,320003461
http://statistics.data.gov.uk/id/local-authority/29UP,Tonbridge & Malling Borough Council,1/18/2023,0031019186/1,31019186, 1760.00,Arnold & Court Ltd,01411300,,Premises Repairs & Maintenance,Parking Off-Street,E10HA000020601,310042944
http://statistics.data.gov.uk/id/local-authority/29UP,Tonbridge & Malling Borough Council,1/18/2023,0031019187/1,31019187, 267.00,Arnold & Court Ltd,01411300,,Repair & Mtce of Fixed Plant,Boro Highways & Emergency Oper,E01AA000020501,310042940
http://statistics.data.gov.uk/id/local-authority/29UP,Tonbridge & Malling Borough Council,1/18/2023,0031019187/2,31019187, 623.00,Arnold & Court Ltd,01411300,,Premises Repairs & Maintenance,Parking Off-Street,E10HA000020601,310042940
http://statistics.data.gov.uk/id/local-authority/29UP,Tonbridge & Malling Borough Council,1/18/2023,0031019188/3,31019188, 335.68,CDER Group,01773300,,Adjudication & Enforcement Ser,Parking Off-Street,E10HA000044230,
http://statistics.data.gov.uk/id/local-authority/29UP,Tonbridge & Malling Borough Council,1/18/2023,0031019189/3,31019189, 267.73,Npower Ltd,01675800,,Electricity,Parking Off-Street,E10HA000021002,
http://statistics.data.gov.uk/id/local-authority/29UP,Tonbridge & Malling Borough Council,1/18/2023,0031019190/3,31019190, 117.64,Npower Ltd,01675800,,Electricity,Parking Off-Street,E10HA000021002,
http://statistics.data.gov.uk/id/local-authority/29UP,Tonbridge & Malling Borough Council,1/18/2023,0031019191/3,31019191, 58.80,Npower Ltd,01675800,,Electricity,Parking Off-Street,E10HA000021002,
http://statistics.data.gov.uk/id/local-authority/29UP,Tonbridge & Malling Borough Council,1/18/2023,0032009960/1,32009960, 1690.50,The Oyster Partnership,01196400,,Temporary Staff,Planning Sals&Overheads,D01AJDJ0111300,
http://statistics.data.gov.uk/id/local-authority/29UP,Tonbridge & Malling Borough Council,1/18/2023,0032010017/3,32010017, 1368.50,The Oyster Partnership,01196400,,Temporary Staff,Planning Sals&Overheads,D01AJDJ0111300,
http://statistics.data.gov.uk/id/local-authority/29UP,Tonbridge & Malling Borough Council,1/18/2023,0032010018/3,32010018, 1880.00,The Oyster Partnership,01196400,,Temporary Staff,Planning Sals&Overheads,D01AJDJ0111300,
http://statistics.data.gov.uk/id/local-authority/29UP,Tonbridge & Malling Borough Council,1/18/2023,0032010019/3,32010019, 1609.50,G2 Recruitment Solutions,01786000,,Temporary Staff,Planning Sals&Overheads,D01AJDJ0111300,
http://statistics.data.gov.uk/id/local-authority/29UP,Tonbridge & Malling Borough Council,1/18/2023,0032010020/3,32010020, 2345.00,G2 Recruitment Solutions,01786000,,Temporary Staff,Planning Sals&Overheads,D01AJDJ0111300,
http://statistics.data.gov.uk/id/local-authority/29UP,Tonbridge & Malling Borough Council,1/18/2023,0032010021/3,32010021, 1290.00,Carrington West Limited,01844500,,Temporary Staff,Planning Sals&Overheads,D01AJDJ0111300,
http://statistics.data.gov.uk/id/local-authority/29UP,Tonbridge & Malling Borough Council,1/18/2023,0032010022/3,32010022, 142.00,G2 Recruitment Solutions,01786000,,Temporary Staff,Planning Sals&Overheads,D01AJDJ0111300,
http://statistics.data.gov.uk/id/local-authority/29UP,Tonbridge & Malling Borough Council,1/18/2023,0032010023/1,32010023, 2585.00,JBA Consulting,01599000,665300941,Development of Local Plan,Development of Local Plan,A01AE000044023,320003466
http://statistics.data.gov.uk/id/local-authority/29UP,Tonbridge & Malling Borough Council,1/18/2023,0032010024/1,32010024, 3500.00,Kent Wildlife Trust,01022300,,Local Wildlife Sites Register,Planning Policy,A01AF000044168,320003478
http://statistics.data.gov.uk/id/local-authority/29UP,Tonbridge & Malling Borough Council,1/18/2023,0032010025/1,32010025, 289.17,KM Media Group Ltd,00053900,,Advertising General,Development Management,A01ABZ99944216,320003473
http://statistics.data.gov.uk/id/local-authority/29UP,Tonbridge & Malling Borough Council,1/18/2023,0041035083/1,41035083, 80.00,WorldPay Ltd,01402000,991280207,Credit Card Commission,Banking Arrangements,D43QK000044082,
http://statistics.data.gov.uk/id/local-authority/29UP,Tonbridge & Malling Borough Council,1/18/2023,0041035083/2,41035083, 37.04,WorldPay Ltd,01402000,991280207,Credit Card Commission,Banking Arrangements,D43QK000044082,
http://statistics.data.gov.uk/id/local-authority/29UP,Tonbridge & Malling Borough Council,1/18/2023,0041035083/3,41035083, 0.16,WorldPay Ltd,01402000,991280207,Credit Card Commission,Banking Arrangements,D43QK000044082,
http://statistics.data.gov.uk/id/local-authority/29UP,Tonbridge & Malling Borough Council,1/18/2023,0041035084/1,41035084, 80.00,WorldPay Ltd,01402000,991280207,Credit Card Commission,Banking Arrangements,D43QK000044082,
http://statistics.data.gov.uk/id/local-authority/29UP,Tonbridge & Malling Borough Council,1/18/2023,0041035084/2,41035084, 50.24,WorldPay Ltd,01402000,991280207,Credit Card Commission,Banking Arrangements,D43QK000044082,
http://statistics.data.gov.uk/id/local-authority/29UP,Tonbridge & Malling Borough Council,1/18/2023,0041035084/3,41035084, 0.96,WorldPay Ltd,01402000,991280207,Credit Card Commission,Banking Arrangements,D43QK000044082,
http://statistics.data.gov.uk/id/local-authority/29UP,Tonbridge & Malling Borough Council,1/18/2023,0041035085/1,41035085, 0.24,WorldPay Ltd,01402000,991280207,Credit Card Commission,Banking Arrangements,D43QK000044082,
http://statistics.data.gov.uk/id/local-authority/29UP,Tonbridge & Malling Borough Council,1/18/2023,0041035085/2,41035085, 80.00,WorldPay Ltd,01402000,991280207,Credit Card Commission,Banking Arrangements,D43QK000044082,
http://statistics.data.gov.uk/id/local-authority/29UP,Tonbridge & Malling Borough Council,1/18/2023,0041035085/3,41035085, 139.04,WorldPay Ltd,01402000,991280207,Credit Card Commission,Banking Arrangements,D43QK000044082,
http://statistics.data.gov.uk/id/local-authority/29UP,Tonbridge & Malling Borough Council,1/18/2023,0041035088/3,41035088, 520.00,Maidstone Borough Council,01173700,,Bailiffs Commission,Local Revenue & NNDR Collect,D41QA000044075,
http://statistics.data.gov.uk/id/local-authority/29UP,Tonbridge & Malling Borough Council,1/18/2023,0041035089/3,41035089, 1687.24,Maidstone Borough Council,01173700,,Bailiffs Commission,Local Revenue & NNDR Collect,D41QA000044075,
http://statistics.data.gov.uk/id/local-authority/29UP,Tonbridge & Malling Borough Council,1/18/2023,0041035090/3,41035090, 746.54,Rundle & Co Ltd,00087200,,Bailiffs Commission,Local Revenue & NNDR Collect,D41QA000044075,
http://statistics.data.gov.uk/id/local-authority/29UP,Tonbridge & Malling Borough Council,1/18/2023,0041035091/3,41035091, 1958.14,Rundle & Co Ltd,00087200,,Bailiffs Commission,Local Revenue & NNDR Collect,D41QA000044075,
http://statistics.data.gov.uk/id/local-authority/29UP,Tonbridge & Malling Borough Council,1/18/2023,0041035100/3,41035100, 347.88,Morgan Hunt UK Ltd,01086900,,Temporary Staff,Finance Sals&Overheads,D01AFDF1111300,
http://statistics.data.gov.uk/id/local-authority/29UP,Tonbridge & Malling Borough Council,1/18/2023,0041035101/3,41035101, 667.92,Morgan Hunt UK Ltd,01086900,,Temporary Staff,Finance Sals&Overheads,D01AFDF1111300,
http://statistics.data.gov.uk/id/local-authority/29UP,Tonbridge & Malling Borough Council,1/18/2023,0041035104/3,41035104, 809.09,Maidstone Borough Council,01173700,,Bailiffs Commission,Local Revenue & NNDR Collect,D41QA000044075,
http://statistics.data.gov.uk/id/local-authority/29UP,Tonbridge & Malling Borough Council,1/18/2023,0041035105/3,41035105, 2516.26,Maidstone Borough Council,01173700,,Bailiffs Commission,Local Revenue & NNDR Collect,D41QA000044075,
http://statistics.data.gov.uk/id/local-authority/29UP,Tonbridge & Malling Borough Council,1/18/2023,0041035106/3,41035106, 2676.12,Rundle & Co Ltd,00087200,,Bailiffs Commission,Local Revenue & NNDR Collect,D41QA000044075,
http://statistics.data.gov.uk/id/local-authority/29UP,Tonbridge & Malling Borough Council,1/18/2023,0041035106/5,41035106, 75.00,Rundle & Co Ltd,00087200,,Bailiffs Commission,Local Revenue & NNDR Collect,D41QA000044075,
http://statistics.data.gov.uk/id/local-authority/29UP,Tonbridge & Malling Borough Council,1/18/2023,0041035107/3,41035107, 151.65,Rundle & Co Ltd,00087200,,Bailiffs Commission,Local Revenue & NNDR Collect,D41QA000044075,
http://statistics.data.gov.uk/id/local-authority/29UP,Tonbridge & Malling Borough Council,1/18/2023,0041035108/1,41035108, 12434.00,Kent County Council,00322500,,Tracing Services,Local Revenue & NNDR Collect,D41QA000044091,410032320
http://statistics.data.gov.uk/id/local-authority/29UP,Tonbridge & Malling Borough Council,1/18/2023,0041035109/1,41035109, 27.45,KCS,00054200,,Stationery,Finance Sals&Overheads,D01AF000043003,410032318
http://statistics.data.gov.uk/id/local-authority/29UP,Tonbridge & Malling Borough Council,1/18/2023,0041035118/1,41035118, 244.95,National Westminster Bank Plc,00069400,,Bank Charges,Banking Arrangements,D43QK000044222,
http://statistics.data.gov.uk/id/local-authority/29UP,Tonbridge & Malling Borough Council,1/18/2023,0051008769/1,51008769, 4999.00,Hays Specialist Recruitment Limited,01879200,773695871,Recruitment Advertising,Recruitment Expenses,D10DADJ0013110,510010609
http://statistics.data.gov.uk/id/local-authority/29UP,Tonbridge & Malling Borough Council,1/19/2023,0041035119/1,41035119, 868.00,King & Shaxson Investments,01411100,,Professional Fees,Treasury Management,D43QT000044001,
http://statistics.data.gov.uk/id/local-authority/29UP,Tonbridge & Malling Borough Council,1/20/2023,0041035054/1,41035054, 14.98,National Westminster Bank Plc,00894500,,Purchases,Haysden Country Park,B22LC000040101,
http://statistics.data.gov.uk/id/local-authority/29UP,Tonbridge & Malling Borough Council,1/20/2023,0041035054/10,41035054, 19.89,National Westminster Bank Plc,00894500,,Software Hire & Support,Information Technology,D27KD000044059,
http://statistics.data.gov.uk/id/local-authority/29UP,Tonbridge & Malling Borough Council,1/20/2023,0041035054/11,41035054, 14.45,National Westminster Bank Plc,00894500,,Delivery Expenses,Information Technology,D27KD000044069,
http://statistics.data.gov.uk/id/local-authority/29UP,Tonbridge & Malling Borough Council,1/20/2023,0041035054/12,41035054, 18.84,National Westminster Bank Plc,00894500,,Information & Publicity,Information & Publicity,D32MJ000044076,
http://statistics.data.gov.uk/id/local-authority/29UP,Tonbridge & Malling Borough Council,1/20/2023,0041035054/13,41035054, 70.00,National Westminster Bank Plc,00894500,,Professional Fees,Land Review,D40PSTON144001,
http://statistics.data.gov.uk/id/local-authority/29UP,Tonbridge & Malling Borough Council,1/20/2023,0041035054/14,41035054, 63.33,National Westminster Bank Plc,00894500,,Professional Fees,Land Review,D40PSTON144001,
http://statistics.data.gov.uk/id/local-authority/29UP,Tonbridge & Malling Borough Council,1/20/2023,0041035054/16,41035054, 250.00,National Westminster Bank Plc,00894500,,Premises Repairs & Maintenance,Parking On-Street,E10HD000020601,
http://statistics.data.gov.uk/id/local-authority/29UP,Tonbridge & Malling Borough Council,1/20/2023,0041035054/17,41035054, 3670.64,National Westminster Bank Plc,00894500,,Premises Repairs & Maintenance,Parking On-Street,E10HD000020601,
http://statistics.data.gov.uk/id/local-authority/29UP,Tonbridge & Malling Borough Council,1/20/2023,0041035054/19,41035054, 28.88,National Westminster Bank Plc,00894500,,Sales,TIC Stock Account,K18AX000002002,
http://statistics.data.gov.uk/id/local-authority/29UP,Tonbridge & Malling Borough Council,1/20/2023,0041035054/2,41035054, 4.95,National Westminster Bank Plc,00894500,,Purchases,Haysden Country Park,B22LC000040101,
http://statistics.data.gov.uk/id/local-authority/29UP,Tonbridge & Malling Borough Council,1/20/2023,0041035054/20,41035054, 129.04,National Westminster Bank Plc,00894500,,Sales,TIC Stock Account,K18AX000002002,
http://statistics.data.gov.uk/id/local-authority/29UP,Tonbridge & Malling Borough Council,1/20/2023,0041035054/3,41035054, 240.80,National Westminster Bank Plc,00894500,,Purchases - Exhibits,Tonbridge Castle Gatehouse,B40TG000040106,
http://statistics.data.gov.uk/id/local-authority/29UP,Tonbridge & Malling Borough Council,1/20/2023,0041035054/4,41035054, 62.36,National Westminster Bank Plc,00894500,,Electricity,Homelessness,C01AATNHS21002,
http://statistics.data.gov.uk/id/local-authority/29UP,Tonbridge & Malling Borough Council,1/20/2023,0041035054/5,41035054, 362.46,National Westminster Bank Plc,00894500,,Purchases,Homelessness,C01AATNPR40101,
http://statistics.data.gov.uk/id/local-authority/29UP,Tonbridge & Malling Borough Council,1/20/2023,0041035054/6,41035054, 362.46,National Westminster Bank Plc,00894500,,Purchases,Homelessness,C01AATNPR40101,
http://statistics.data.gov.uk/id/local-authority/29UP,Tonbridge & Malling Borough Council,1/20/2023,0041035054/7,41035054, 25.00,National Westminster Bank Plc,00894500,,Stationery,Finance Sals&Overheads,D01AFDF1143003,
http://statistics.data.gov.uk/id/local-authority/29UP,Tonbridge & Malling Borough Council,1/20/2023,0041035054/8,41035054, 108.00,National Westminster Bank Plc,00894500,,Legal Fees,Legal Sals&Overheads,D01ARDR0044002,
http://statistics.data.gov.uk/id/local-authority/29UP,Tonbridge & Malling Borough Council,1/20/2023,0041035098/10,41035098, 270.46,National Westminster Bank Plc,00894500,,Software Hire & Support,Information Technology,D27KD000044059,
http://statistics.data.gov.uk/id/local-authority/29UP,Tonbridge & Malling Borough Council,1/20/2023,0041035098/11,41035098, 14.37,National Westminster Bank Plc,00894500,,Software Hire & Support,Information Technology,D27KD000044059,
http://statistics.data.gov.uk/id/local-authority/29UP,Tonbridge & Malling Borough Council,1/20/2023,0041035098/12,41035098, 84.79,National Westminster Bank Plc,00894500,,Software Hire & Support,Information Technology,D27KD000044059,
http://statistics.data.gov.uk/id/local-authority/29UP,Tonbridge & Malling Borough Council,1/20/2023,0041035098/13,41035098, 28.37,National Westminster Bank Plc,00894500,,Delivery Expenses,Information Technology,D27KD000044069,
http://statistics.data.gov.uk/id/local-authority/29UP,Tonbridge & Malling Borough Council,1/20/2023,0041035098/14,41035098, 29.16,National Westminster Bank Plc,00894500,,Delivery Expenses,Information Technology,D27KD000044069,
http://statistics.data.gov.uk/id/local-authority/29UP,Tonbridge & Malling Borough Council,1/20/2023,0041035098/15,41035098, 29.16,National Westminster Bank Plc,00894500,,Delivery Expenses,Information Technology,D27KD000044069,
http://statistics.data.gov.uk/id/local-authority/29UP,Tonbridge & Malling Borough Council,1/20/2023,0041035098/16,41035098, 18.17,National Westminster Bank Plc,00894500,,Information & Publicity,Information & Publicity,D32MJ000044076,
http://statistics.data.gov.uk/id/local-authority/29UP,Tonbridge & Malling Borough Council,1/20/2023,0041035098/17,41035098, 204.00,National Westminster Bank Plc,00894500,,Professional Fees,Land Review,D40PSTON144001,
http://statistics.data.gov.uk/id/local-authority/29UP,Tonbridge & Malling Borough Council,1/20/2023,0041035098/18,41035098, 100.00,National Westminster Bank Plc,00894500,,Initiatives,Climate Change,D47SA000048135,
http://statistics.data.gov.uk/id/local-authority/29UP,Tonbridge & Malling Borough Council,1/20/2023,0041035098/19,41035098, 668.00,National Westminster Bank Plc,00894500,,Economic Development & Regen,Eco Dev & Reg Gen Bus Support,D52TD000047027,
http://statistics.data.gov.uk/id/local-authority/29UP,Tonbridge & Malling Borough Council,1/20/2023,0041035098/20,41035098, 19.08,National Westminster Bank Plc,00894500,,Sales,TIC Stock Account,K18AX000002002,
http://statistics.data.gov.uk/id/local-authority/29UP,Tonbridge & Malling Borough Council,1/20/2023,0041035098/21,41035098, 38.16,National Westminster Bank Plc,00894500,,Sales,TIC Stock Account,K18AX000002002,
http://statistics.data.gov.uk/id/local-authority/29UP,Tonbridge & Malling Borough Council,1/20/2023,0041035098/22,41035098, 112.19,National Westminster Bank Plc,00894500,,Sales,TIC Stock Account,K18AX000002002,
http://statistics.data.gov.uk/id/local-authority/29UP,Tonbridge & Malling Borough Council,1/20/2023,0041035098/8,41035098, 108.32,National Westminster Bank Plc,00894500,,Purchases,Customer Services,D23CS000040101,
http://statistics.data.gov.uk/id/local-authority/29UP,Tonbridge & Malling Borough Council,1/20/2023,0041035098/9,41035098, 131.00,National Westminster Bank Plc,00894500,,Software Hire & Support,Information Technology,D27KD000044059,
http://statistics.data.gov.uk/id/local-authority/29UP,Tonbridge & Malling Borough Council,1/20/2023,0041035123/1,41035123, 2393.00,H.M. Revenue & Customs,00048400,,Levy Payment,Apprenticeship Scheme,D10DE000013700,
http://statistics.data.gov.uk/id/local-authority/29UP,Tonbridge & Malling Borough Council,1/20/2023,0041035124/1,41035124, 15.00,WorldPay ,01568000,,Credit Card Commission,Banking Arrangements,D43QK000044082,
http://statistics.data.gov.uk/id/local-authority/29UP,Tonbridge & Malling Borough Council,1/20/2023,0041035125/1,41035125, 140.97,WorldPay ,01568000,,Credit Card Commission,Banking Arrangements,D43QK000044082,
http://statistics.data.gov.uk/id/local-authority/29UP,Tonbridge & Malling Borough Council,1/20/2023,0041035126/1,41035126, 553.90,WorldPay ,01568000,,Credit Card Commission,Banking Arrangements,D43QK000044082,
http://statistics.data.gov.uk/id/local-authority/29UP,Tonbridge & Malling Borough Council,1/23/2023,0041035130/1,41035130, 20.03,WorldPay Ltd,01402000,991280207,Credit Card Commission,Banking Arrangements,D43QK000044082,
http://statistics.data.gov.uk/id/local-authority/29UP,Tonbridge & Malling Borough Council,1/23/2023,0041035131/1,41035131, 1681.57,WorldPay ,01568000,,Credit Card Commission,Banking Arrangements,D43QK000044082,
http://statistics.data.gov.uk/id/local-authority/29UP,Tonbridge & Malling Borough Council,1/23/2023,0041035131/2,41035131, 149.39,WorldPay ,01568000,,Credit Card Commission,Banking Arrangements,D43QK000044082,
http://statistics.data.gov.uk/id/local-authority/29UP,Tonbridge & Malling Borough Council,1/24/2023,0041035136/1,41035136, 68.00,National Westminster Bank Plc,00069400,,Bank Charges,Banking Arrangements,D43QK000044222,
http://statistics.data.gov.uk/id/local-authority/29UP,Tonbridge & Malling Borough Council,1/25/2023,0011045420/1,11045420, 65.00,NKM Fire Protection Ltd,01784600,,BRREP Servicing - FireAlarmSys,Tonbridge Swimming Pool,M15HBP20001937,110069951
http://statistics.data.gov.uk/id/local-authority/29UP,Tonbridge & Malling Borough Council,1/25/2023,0011045445/1,11045445, 311.39,Scottish Water Business Stream Ltd,01641100,,Estate Management Charge,Land Review,D40PS000020400,
http://statistics.data.gov.uk/id/local-authority/29UP,Tonbridge & Malling Borough Council,1/25/2023,0011045464/1,11045464, 4950.00,Concrete & Corrosion Consultancy Practic,01558900,,BRREP General Maintenance,Tonbridge Swimming Pool,M15HBP10001900,110069893
http://statistics.data.gov.uk/id/local-authority/29UP,Tonbridge & Malling Borough Council,1/25/2023,0011045504/1,11045504, 330.00,G C Industrial Heating Services,00578100,,BRREP Servicing - Heating Syst,Gibson Building West,M15KBP20001934,110069970
http://statistics.data.gov.uk/id/local-authority/29UP,Tonbridge & Malling Borough Council,1/25/2023,0011045512/1,11045512, 376.00,BML Building Services Ltd,01505000,,BRREP Response - General,PC - General,M15JAP50001997,110069780
http://statistics.data.gov.uk/id/local-authority/29UP,Tonbridge & Malling Borough Council,1/25/2023,0011045513/1,11045513, 1217.80,Sellick Partnership Group Limited,01336800,,Temporary Staff,Legal Sals&Overheads,D01ARDR0011300,
http://statistics.data.gov.uk/id/local-authority/29UP,Tonbridge & Malling Borough Council,1/25/2023,0011045514/1,11045514, 429.00,KH Recruitment Ltd,01738900,,Salaries & On Costs,Licences - Fee Paying,H27SH000015100,
http://statistics.data.gov.uk/id/local-authority/29UP,Tonbridge & Malling Borough Council,1/25/2023,0011045515/1,11045515, 658.07,KH Recruitment Ltd,01738900,,Salaries & On Costs,Licences - Fee Paying,H27SH000015100,
http://statistics.data.gov.uk/id/local-authority/29UP,Tonbridge & Malling Borough Council,1/25/2023,0011045516/1,11045516, 1217.80,Sellick Partnership Group Limited,01336800,,Temporary Staff,Legal Sals&Overheads,D01ARDR0011300,
http://statistics.data.gov.uk/id/local-authority/29UP,Tonbridge & Malling Borough Council,1/25/2023,0011045517/1,11045517, 5000.00,VO2 Maximum Ltd,01883300,,Economic Development & Regen,Eco Dev & Reg Gen Bus Support,D52TD000047027,
http://statistics.data.gov.uk/id/local-authority/29UP,Tonbridge & Malling Borough Council,1/25/2023,0011045518/1,11045518, 6000.00,Cornerstones Barristers,01359100,,Legal Fees,Legal Sals&Overheads,D01ARDR0044002,
http://statistics.data.gov.uk/id/local-authority/29UP,Tonbridge & Malling Borough Council,1/25/2023,0011045519/1,11045519, 329.84,KCS,00054200,,Estate Management Charge,Land Review,D40PS000020400,
http://statistics.data.gov.uk/id/local-authority/29UP,Tonbridge & Malling Borough Council,1/25/2023,0011045520/1,11045520, 670.00,G C Industrial Heating Services,00578100,,BRREP Response - General,Tonbridge Swimming Pool,M15HBP50001997,
http://statistics.data.gov.uk/id/local-authority/29UP,Tonbridge & Malling Borough Council,1/25/2023,0011045521/1,11045521, 215.52,Initial Washroom Hygiene,00048300,,Laundry - Roller Towels,Cleaning & Security,D21FD000042003,
http://statistics.data.gov.uk/id/local-authority/29UP,Tonbridge & Malling Borough Council,1/25/2023,0011045522/3,11045522, 310.00,G C Industrial Heating Services,00578100,,BRREP Response - General,Gibson Building West,M15KBP50001997,
http://statistics.data.gov.uk/id/local-authority/29UP,Tonbridge & Malling Borough Council,1/25/2023,0011045523/3,11045523, 5430.30,KCS,00054200,,Gas,Buildings,D21FEDD1021003,
http://statistics.data.gov.uk/id/local-authority/29UP,Tonbridge & Malling Borough Council,1/25/2023,0011045524/3,11045524, 2035.36,KCS,00054200,,Gas,Buildings,D21FEDD6021003,
http://statistics.data.gov.uk/id/local-authority/29UP,Tonbridge & Malling Borough Council,1/25/2023,0011045525/3,11045525, 61.26,KCS,00054200,,Estate Management Charge,Land Review,D40PS000020400,
http://statistics.data.gov.uk/id/local-authority/29UP,Tonbridge & Malling Borough Council,1/25/2023,0011045528/1,11045528, 218.07,Scottish Water Business Stream Ltd,01641100,,Estate Management Charge,Land Review,D40PS000020400,
http://statistics.data.gov.uk/id/local-authority/29UP,Tonbridge & Malling Borough Council,1/25/2023,0011045529/3,11045529, 1117.20,KCS,00054200,,Estate Management Charge,Land Review,D40PS000020400,
http://statistics.data.gov.uk/id/local-authority/29UP,Tonbridge & Malling Borough Council,1/25/2023,0011045533/3,11045533, 89.20,BML Building Services Ltd,01505000,,Repairs & Mtce to Buildings,Homelessness,C01AATNHS20101,
http://statistics.data.gov.uk/id/local-authority/29UP,Tonbridge & Malling Borough Council,1/25/2023,0011045534/3,11045534, 150.00,BML Building Services Ltd,01505000,,BRREP Response - General,Leis Man Poult Wood Golf Centr,M15HEP50001997,
http://statistics.data.gov.uk/id/local-authority/29UP,Tonbridge & Malling Borough Council,1/25/2023,0011045535/1,11045535, 80.00,Maidstone Borough Council,01453900,,Hospitality,Mayoral & Other Member Support,D29LX000048003,
http://statistics.data.gov.uk/id/local-authority/29UP,Tonbridge & Malling Borough Council,1/25/2023,0011045537/3,11045537, 6536.85,Royal Mail,00086200,,Purchases,Mailsort Stock Account,K37BR000001002,
http://statistics.data.gov.uk/id/local-authority/29UP,Tonbridge & Malling Borough Council,1/25/2023,0011045537/4,11045537, 6.77,Royal Mail,00086200,,Purchases,Mailsort Stock Account,K37BR000001002,
http://statistics.data.gov.uk/id/local-authority/29UP,Tonbridge & Malling Borough Council,1/25/2023,0011045537/5,11045537, 6.65,Royal Mail,00086200,,Purchases,Mailsort Stock Account,K37BR000001002,
http://statistics.data.gov.uk/id/local-authority/29UP,Tonbridge & Malling Borough Council,1/25/2023,0011045538/1,11045538, 3500.00,Let's Do Business(South East) Group Ltd,01879300,,Initiatives,UK Shared Prosperity Fund,D52TH000048135,110069982
http://statistics.data.gov.uk/id/local-authority/29UP,Tonbridge & Malling Borough Council,1/25/2023,0011045539/1,11045539, 1520.00,G C Industrial Heating Services,00578100,,BRREP Servicing - Heating Syst,Angel Centre,M15HAP20001934,110069963
http://statistics.data.gov.uk/id/local-authority/29UP,Tonbridge & Malling Borough Council,1/25/2023,0011045541/1,11045541, 3986.00,BML Building Services Ltd,01505000,,BRREP Response - General,Gibson Building West,M15KBP50001997,110069961
http://statistics.data.gov.uk/id/local-authority/29UP,Tonbridge & Malling Borough Council,1/25/2023,0011045542/1,11045542, 7896.46,Envirocure Limited,00963300,,BRREP General Maintenance,Angel Centre,M15HAP30001900,110069755
http://statistics.data.gov.uk/id/local-authority/29UP,Tonbridge & Malling Borough Council,1/25/2023,0011045543/1,11045543, 8937.23,Envirocure Limited,00963300,,BRREP General Maintenance,Tonbridge Swimming Pool,M15HBP30001900,110069757
http://statistics.data.gov.uk/id/local-authority/29UP,Tonbridge & Malling Borough Council,1/25/2023,0011045544/1,11045544, 4565.80,H20 Servicing Limited,00888800,808041553,BRREP Plant renewals,Larkfield Leisure Centre,M15HDP20001909,110069507
http://statistics.data.gov.uk/id/local-authority/29UP,Tonbridge & Malling Borough Council,1/25/2023,0011045545/1,11045545, 195.00,Coolburn Air Conditioning Ltd,01137900,,BRREP Servicing - air handling,Larkfield Leisure Centre,M15HDP20001936,110069980
http://statistics.data.gov.uk/id/local-authority/29UP,Tonbridge & Malling Borough Council,1/25/2023,0011045546/1,11045546, 280.00,G C Industrial Heating Services,00578100,,BRREP Response - General,Gibson Building East,M15KGP50001997,110069916
http://statistics.data.gov.uk/id/local-authority/29UP,Tonbridge & Malling Borough Council,1/25/2023,0011045547/1,11045547, 185.00,Atac Solutions LTD,01558800,,BRREP LeybourneCP SewageDigest,Leybourne Lakes Country Park,M15HLP20001961,110069991
http://statistics.data.gov.uk/id/local-authority/29UP,Tonbridge & Malling Borough Council,1/25/2023,0011045549/1,11045549, 240.00,G C Industrial Heating Services,00578100,,BRREP Servicing - Heating Syst,Gibson Building West,M15KBP20001934,110069989
http://statistics.data.gov.uk/id/local-authority/29UP,Tonbridge & Malling Borough Council,1/25/2023,0011045550/1,11045550, 500.00,BML Building Services Ltd,01505000,,BRREP Response - General,Tonbridge Castle Gatehouse,M15HKP50001997,110069971
http://statistics.data.gov.uk/id/local-authority/29UP,Tonbridge & Malling Borough Council,1/25/2023,0011045551/1,11045551, 677.00,Topline  Electronics Ltd Pools and Welln,01864600,,BRREP Plant renewals,Tonbridge Swimming Pool,M15HBP20001909,110069922
http://statistics.data.gov.uk/id/local-authority/29UP,Tonbridge & Malling Borough Council,1/25/2023,0011045553/1,11045553, 393.75,Eryl Davies Veterinary Surgeon,01657600,,Professional Fees,Licences - Fee Paying,H27SH000044001,
http://statistics.data.gov.uk/id/local-authority/29UP,Tonbridge & Malling Borough Council,1/25/2023,0011045554/1,11045554, 2499.00,Tonbridge Youth Hub,01630300,,Initiatives,UK Shared Prosperity Fund,D52TH000048135,
http://statistics.data.gov.uk/id/local-authority/29UP,Tonbridge & Malling Borough Council,1/25/2023,0011045555/3,11045555, 1694.00,Thomson Snell & Passmore,00101700,,Legal Fees,Legal Sals&Overheads,D01ARDR0044002,
http://statistics.data.gov.uk/id/local-authority/29UP,Tonbridge & Malling Borough Council,1/25/2023,0011045556/1,11045556, 6531.25,Blue Allium HR Ltd,01883400,,Legal Fees,Legal Sals&Overheads,D01ARDR0044002,
http://statistics.data.gov.uk/id/local-authority/29UP,Tonbridge & Malling Borough Council,1/25/2023,0011045559/1,11045559, 129.00,BML Building Services Ltd,01505000,,BRREP Response - General,Shops & Maisonettes,M15NAP50001997,110069864
http://statistics.data.gov.uk/id/local-authority/29UP,Tonbridge & Malling Borough Council,1/25/2023,0012008609/1,12008609, 562.20,Phoenix Software Ltd,00077400,755349015,Software Hire & Support,Information Technology,D27KD000044059,410032326
http://statistics.data.gov.uk/id/local-authority/29UP,Tonbridge & Malling Borough Council,1/25/2023,0012008610/1,12008610, 6003.45,Coolspirit Ltd,01366300,,Software Hire & Support,Information Technology,D27KD000044059,410032321
http://statistics.data.gov.uk/id/local-authority/29UP,Tonbridge & Malling Borough Council,1/25/2023,0012008610/2,12008610, 2225.25,Coolspirit Ltd,01366300,,Software Hire & Support,Information Technology,D27KD000044059,410032321
http://statistics.data.gov.uk/id/local-authority/29UP,Tonbridge & Malling Borough Council,1/25/2023,0012008610/3,12008610, 26095.80,Coolspirit Ltd,01366300,,Software Hire & Support,Information Technology,D27KD000044059,410032321
http://statistics.data.gov.uk/id/local-authority/29UP,Tonbridge & Malling Borough Council,1/25/2023,0012008611/1,12008611, 125.00,Avoira,01755500,,Purchases,Information Technology,D27KD000040101,410032322
http://statistics.data.gov.uk/id/local-authority/29UP,Tonbridge & Malling Borough Council,1/25/2023,0012008611/2,12008611, 365.00,Avoira,01755500,,Purchases,Information Technology,D27KD000040101,410032322
http://statistics.data.gov.uk/id/local-authority/29UP,Tonbridge & Malling Borough Council,1/25/2023,0012008611/3,12008611, 9.95,Avoira,01755500,,Delivery Expenses,Information Technology,D27KD000044069,410032322
http://statistics.data.gov.uk/id/local-authority/29UP,Tonbridge & Malling Borough Council,1/25/2023,0021038367/1,21038367, 35.00,Verity Rae Martin LTD,01619000,,Partnership Fees,Youth Partnerships,B33PG000044048,210056968
http://statistics.data.gov.uk/id/local-authority/29UP,Tonbridge & Malling Borough Council,1/25/2023,0021038368/1,21038368, 13.00,REDACTED PERSONAL DATA,01217300,,Youth Initiatives,Youth Partnerships,B33PG000048124,
http://statistics.data.gov.uk/id/local-authority/29UP,Tonbridge & Malling Borough Council,1/25/2023,0021038369/1,21038369, 685.66,Atlas Facilities Managment Limited ,01075900,,Gates / Security,Patrolling,B22LF000044017,210056716
http://statistics.data.gov.uk/id/local-authority/29UP,Tonbridge & Malling Borough Council,1/25/2023,0021038370/1,21038370, 355.00,David Hodgkinson Photographer,01068900,,Marketing,Events Development,B41TJZ99944215,210057101
http://statistics.data.gov.uk/id/local-authority/29UP,Tonbridge & Malling Borough Council,1/25/2023,0021038371/1,21038371, 3000.00,Arnold Tarmac Ltd,01685100,,Maintenance of Grounds,Haysden Country Park,B22LC000020402,210057087
http://statistics.data.gov.uk/id/local-authority/29UP,Tonbridge & Malling Borough Council,1/25/2023,0022027383/1,22027383, 3968.07,Orbit Housing Association Ltd,01261900,,Contribution from Other Bodies,Homelessness,C01AACV1995001,
http://statistics.data.gov.uk/id/local-authority/29UP,Tonbridge & Malling Borough Council,1/25/2023,0022027384/3,22027384, 663.00,Tunbridge Wells Borough Council,00844600,,Other Expenses,Refuse Collection,H20SA000048010,
http://statistics.data.gov.uk/id/local-authority/29UP,Tonbridge & Malling Borough Council,1/25/2023,0022027385/1,22027385, 1448.02,Town & Country Housing Group,01385400,,Other Expenses,Disabled Facilities Grant Mand,P03AC000009908,
http://statistics.data.gov.uk/id/local-authority/29UP,Tonbridge & Malling Borough Council,1/25/2023,0022027386/1,22027386, 10013.99,Home Adaptations South East LTD,01611500,,Other Expenses,Disabled Facilities Grant Mand,P03AC000009908,
http://statistics.data.gov.uk/id/local-authority/29UP,Tonbridge & Malling Borough Council,1/25/2023,0022027387/1,22027387, 2700.00,Dolphin Stairlifts,00698900,,Other Expenses,Disabled Facilities Grant Mand,P03AC000009908,
http://statistics.data.gov.uk/id/local-authority/29UP,Tonbridge & Malling Borough Council,1/25/2023,0022027388/1,22027388, 316.80,Town & Country Housing Group,01385400,,Other Expenses,Disabled Facilities Grant Mand,P03AC000009908,
http://statistics.data.gov.uk/id/local-authority/29UP,Tonbridge & Malling Borough Council,1/25/2023,0022027389/1,22027389, 490.00,Countrystyle Group,00835900,781981681,Collection of Card,Dry Recycling,H34SR000054008,
http://statistics.data.gov.uk/id/local-authority/29UP,Tonbridge & Malling Borough Council,1/25/2023,0022027390/1,22027390, 47.90,British Telecommunications Plc,00012800,,Purchases,Homelessness,C01AATNPR40101,
http://statistics.data.gov.uk/id/local-authority/29UP,Tonbridge & Malling Borough Council,1/25/2023,0022027390/2,22027390, 194.96,British Telecommunications Plc,00012800,,Purchases,Homelessness,C01AATNPR40101,
http://statistics.data.gov.uk/id/local-authority/29UP,Tonbridge & Malling Borough Council,1/25/2023,0022027390/3,22027390, 40.00,British Telecommunications Plc,00012800,,Purchases,Homelessness,C01AATNPR40101,
http://statistics.data.gov.uk/id/local-authority/29UP,Tonbridge & Malling Borough Council,1/25/2023,0022027391/1,22027391, 47.90,British Telecommunications Plc,00012800,,Purchases,Homelessness,C01AA000040101,
http://statistics.data.gov.uk/id/local-authority/29UP,Tonbridge & Malling Borough Council,1/25/2023,0022027391/2,22027391, 40.00,British Telecommunications Plc,00012800,,Purchases,Homelessness,C01AA000040101,
http://statistics.data.gov.uk/id/local-authority/29UP,Tonbridge & Malling Borough Council,1/25/2023,0022027392/3,22027392, 147.00,ATEM Electrical Limited,01883000,,Repairs & Mtce to Buildings,Homelessness,C01AA000020101,
http://statistics.data.gov.uk/id/local-authority/29UP,Tonbridge & Malling Borough Council,1/25/2023,0022027393/1,22027393, 1892.00,Clarkes Funeral Service,00021200,,Funeral Expenses,Public Health Act 1984,H26SG000054002,220003299
http://statistics.data.gov.uk/id/local-authority/29UP,Tonbridge & Malling Borough Council,1/25/2023,0022027394/1,22027394, 60.00,LA Personal Fitness,01782300,,Healthy Living Initiatives,Public Health - Healthy Living,H40SYVH0048145,220003296
http://statistics.data.gov.uk/id/local-authority/29UP,Tonbridge & Malling Borough Council,1/25/2023,0022027395/1,22027395, 5430.00,Under My Roof Ltd,01806700,,Temporary Accommodation,Homelessness,C01AA000044051,
http://statistics.data.gov.uk/id/local-authority/29UP,Tonbridge & Malling Borough Council,1/25/2023,0022027396/1,22027396, 5611.00,Under My Roof Ltd,01806700,,Temporary Accommodation,Homelessness,C01AA000044051,
http://statistics.data.gov.uk/id/local-authority/29UP,Tonbridge & Malling Borough Council,1/25/2023,0031019207/1,31019207, 79.86,Shell U.K. Oil Products Limited,01673300,,"Petrol, Diesel & Oil",Patrolling,B22LF000030106,
http://statistics.data.gov.uk/id/local-authority/29UP,Tonbridge & Malling Borough Council,1/25/2023,0031019207/2,31019207, 98.32,Shell U.K. Oil Products Limited,01673300,,"Petrol, Diesel & Oil",Parking Off-Street,E10HA000030106,
http://statistics.data.gov.uk/id/local-authority/29UP,Tonbridge & Malling Borough Council,1/25/2023,0031019207/3,31019207, 98.31,Shell U.K. Oil Products Limited,01673300,,"Petrol, Diesel & Oil",Parking On-Street,E10HD000030106,
http://statistics.data.gov.uk/id/local-authority/29UP,Tonbridge & Malling Borough Council,1/25/2023,0031019216/3,31019216, 2891.53,Alpha Parking Ltd,01167300,,Car Parking Action Plan,Parking On-Street,E10HD000020801,
http://statistics.data.gov.uk/id/local-authority/29UP,Tonbridge & Malling Borough Council,1/25/2023,0031019216/4,31019216, 332.47,Alpha Parking Ltd,01167300,,Car Parking Action Plan,Parking On-Street,E10HD000020801,
http://statistics.data.gov.uk/id/local-authority/29UP,Tonbridge & Malling Borough Council,1/25/2023,0031019217/3,31019217, 21.00,Streamline (Kent) Limited,01043100,,Public Transport,Homelessness,C01AA000033001,
http://statistics.data.gov.uk/id/local-authority/29UP,Tonbridge & Malling Borough Council,1/25/2023,0032010026/3,32010026, 1645.41,The Oyster Partnership,01196400,,Temporary Staff,Planning Sals&Overheads,D01AJDJ0111300,
http://statistics.data.gov.uk/id/local-authority/29UP,Tonbridge & Malling Borough Council,1/25/2023,0032010027/3,32010027, 1717.18,The Oyster Partnership,01196400,,Temporary Staff,Planning Sals&Overheads,D01AJDJ0111300,
http://statistics.data.gov.uk/id/local-authority/29UP,Tonbridge & Malling Borough Council,1/25/2023,0032010028/3,32010028, 1885.40,The Oyster Partnership,01196400,,Temporary Staff,Planning Sals&Overheads,D01AJDJ0111300,
http://statistics.data.gov.uk/id/local-authority/29UP,Tonbridge & Malling Borough Council,1/25/2023,0032010029/3,32010029, 1609.50,G2 Recruitment Solutions,01786000,,Temporary Staff,Planning Sals&Overheads,D01AJDJ0111300,
http://statistics.data.gov.uk/id/local-authority/29UP,Tonbridge & Malling Borough Council,1/25/2023,0032010033/1,32010033, 246.33,KM Media Group Ltd,00053900,,Advertising General,Development Management,A01ABZ99944216,320003474
http://statistics.data.gov.uk/id/local-authority/29UP,Tonbridge & Malling Borough Council,1/25/2023,0032010034/1,32010034, 4480.00,Haymarket Media Group Limited,01197800,,Application & Appeals,Development Management,A01AB000044194,320003477
http://statistics.data.gov.uk/id/local-authority/29UP,Tonbridge & Malling Borough Council,1/25/2023,0032010035/3,32010035, 1548.00,Carrington West Limited,01844500,,Temporary Staff,Planning Sals&Overheads,D01AJDJ0111300,
http://statistics.data.gov.uk/id/local-authority/29UP,Tonbridge & Malling Borough Council,1/25/2023,0041035132/3,41035132, 654.01,Morgan Hunt UK Ltd,01086900,,Temporary Staff,Finance Sals&Overheads,D01AFDF1111300,
http://statistics.data.gov.uk/id/local-authority/29UP,Tonbridge & Malling Borough Council,1/25/2023,0041035133/3,41035133, 2260.76,Rundle & Co Ltd,00087200,,Bailiffs Commission,Local Revenue & NNDR Collect,D41QA000044075,
http://statistics.data.gov.uk/id/local-authority/29UP,Tonbridge & Malling Borough Council,1/25/2023,0041035134/3,41035134, 91.61,Rundle & Co Ltd,00087200,,Bailiffs Commission,Local Revenue & NNDR Collect,D41QA000044075,
http://statistics.data.gov.uk/id/local-authority/29UP,Tonbridge & Malling Borough Council,1/25/2023,0051008765/1,51008765, 1320.00,Irrv,00050300,,Ext Fees/Prof & Tech,Training,D10DCDF1113561,510010607
http://statistics.data.gov.uk/id/local-authority/29UP,Tonbridge & Malling Borough Council,1/25/2023,0051008771/1,51008771, 795.00,Alpha Parking Ltd,01167300,,Ext Fees/Prof & Tech,Training,D10DCDE0513561,510010604
http://statistics.data.gov.uk/id/local-authority/29UP,Tonbridge & Malling Borough Council,1/27/2023,0041035143/1,41035143, 15.20,HSBC Bank Plc,01740800,,Bank Charges,Banking Arrangements,D43QK000044222,
http://statistics.data.gov.uk/id/local-authority/29UP,Tonbridge & Malling Borough Council,1/27/2023,0041035144/1,41035144, 15.20,HSBC Bank Plc,01740800,,Bank Charges,Banking Arrangements,D43QK000044222,
http://statistics.data.gov.uk/id/local-authority/29UP,Tonbridge & Malling Borough Council,1/31/2023,0041035153/1,41035153, 3000.00,The East Malling Centre/Community Larder,01168000,,Charitable / Voluntary Organis,Grants & Payments to Vol Orgn,D37PACV1947005,
http://statistics.data.gov.uk/id/local-authority/29UP,Tonbridge & Malling Borough Council,1/31/2023,0041035155/1,41035155, 10000.00,Tonbridge Baptist Church,00401200,,Charitable / Voluntary Organis,Grants & Payments to Vol Orgn,D37PACV1947005,
